{"text_format":"1","workbook":"xlsx","n_sheets":13,"sheets":["January","February","March","April","May","June","July","August","September","October","November","December","BD1"],"not_rendered":{"charts":0,"images":1,"macros":1,"external_links":0,"defined_names":8,"comments":12,"pivot_tables":0},"unopened":[],"bounds":{"document_bytes":16777216,"sheet_cells":100000,"rows_first":2000,"rows_last":500,"rows_between":2000,"halvings":0,"cell_chars":16384,"cell_head_chars":4096},"cells_cut":0,"cells_raw":0,"read":"whole","date_system":"1900"}

{"sheet":"January","index":0,"n_rows":55,"n_cols":43,"rows_kept":55,"cut":false,"hidden":false,"merged":[[5,6,5,8],[6,3,6,42],[11,7,11,12],[8,7,8,31],[9,7,9,31],[10,7,10,31],[50,32,50,41],[53,32,53,41],[54,32,54,41],[50,17,50,26],[53,17,53,26],[54,17,54,26]]}
[]
[null,null,null,null,null,null,null,null,"Nome do Ficheiro",null,null,null,{"$f":"CONCATENATE(CalendarYear,\".\",F6,\".\",VLOOKUP(H10,'BD1'!F2:J14,4,FALSE))","v":{"$error":"#N/A"}}]
[null,null,null,null,null,null,null,null,"Nome de Folha",null,null,null,{"$f":"CONCATENATE(E6,\".\",CalendarYear)","v":"January.2023"}]
[null,null,null,"Início da semana","SUN"]
[null,null,null,"Ano",2023]
[null,null,null,"Mês","January",{"$f":"VLOOKUP(E6,'BD1'!B2:C13,2,FALSE)","v":"01"},{"$f":"R16","v":"2023-01-13"}]
[null,null,null,"TIMESHEET"]
[]
[null,null,null,null,null,null,"DEPARTMENT/SERVICE: "]
[null,null,null,null,null,null,"NAME:"]
[null,null,null,null,null,null,"CATEGORY:"]
[null,null,null,null,null,null,"MONHT/YEAR:",{"$f":"CONCATENATE(E6,\"/\",CalendarYear)","v":"January/2023"}]
[]
[null,null,null,null,null,{"$f":"AND(MONTH(F16)=MONTH($G$6),COUNTIF(feriados,F16)>0)","v":true},false,false,false,false,false,false,false,false,false,false,false,false,false,false,false,false,false,false,false,false,false,false,false,false,false,false,false,false,false,false,false,false,false,false,false,false]
[null,null,null,null,null,"Sun","Mon","Tue","Wed","Thu","Fri","Sat","Sun","Mon","Tue","Wed","Thu","Fri","Sat","Sun","Mon","Tue","Wed","Thu","Fri","Sat","Sun","Mon","Tue","Wed","Thu","Fri","Sat","Sun","Mon","Tue","Wed","Thu","Fri","Sat","Sun","Mon","TOTAL "]
[null,null,null,"Project ","Tasks",{"$f":"DaysAndWeeks+DATE(CalendarYear,F6,1)-WEEKDAY(DATE(CalendarYear,F6,1),(WeekStart=\"Mon\")+1)+1","v":"2023-01-01"},"2023-01-02","2023-01-03","2023-01-04","2023-01-05","2023-01-06","2023-01-07",{"$f":"DaysAndWeeks+DATE(CalendarYear,F6,1)-WEEKDAY(DATE(CalendarYear,F6,1),(WeekStart=\"Mon\")+1)+8","v":"2023-01-08"},"2023-01-09","2023-01-10","2023-01-11","2023-01-12","2023-01-13","2023-01-14",{"$f":"DaysAndWeeks+DATE(CalendarYear,F6,1)-WEEKDAY(DATE(CalendarYear,F6,1),(WeekStart=\"Mon\")+1)+15","v":"2023-01-15"},"2023-01-16","2023-01-17","2023-01-18","2023-01-19","2023-01-20","2023-01-21",{"$f":"DaysAndWeeks+DATE(CalendarYear,F6,1)-WEEKDAY(DATE(CalendarYear,F6,1),(WeekStart=\"Mon\")+1)+22","v":"2023-01-22"},"2023-01-23","2023-01-24","2023-01-25","2023-01-26","2023-01-27","2023-01-28",{"$f":"DaysAndWeeks+DATE(CalendarYear,F6,1)-WEEKDAY(DATE(CalendarYear,F6,1),(WeekStart=\"Mon\")+1)+29","v":"2023-01-29"},"2023-01-30","2023-01-31","2023-02-01","2023-02-02","2023-02-03","2023-02-04",{"$f":"DaysAndWeeks+DATE(CalendarYear,F6,1)-WEEKDAY(DATE(CalendarYear,F6,1),(WeekStart=\"Mon\")+1)+36","v":"2023-02-05"},"2023-02-06","HOURS"]
[{"$f":"IF(OR($H$10=\"\",D17=\"\"),\"\",$H$10)","v":""},{"$f":"IF(OR(CalendarYear=\"\",D17=\"\"),\"\",CalendarYear)","v":""},{"$f":"IF(OR($E$6=\"\",D17=\"\"),\"\",$E$6)","v":""},null,null,null,null,null,null,null,null,null,null,null,null,null,null,null,null,null,null,null,null,null,null,null,null,null,null,null,null,null,null,null,null,null,null,null,null,null,null,null,{"$f":"IF(SUM(F17:AP17)=0,\"\",SUM(F17:AP17))","v":""}]
[{"$f":"IF(OR($H$10=\"\",D18=\"\"),\"\",$H$10)","v":""},"",{"$f":"IF(OR($E$6=\"\",D18=\"\"),\"\",$E$6)","v":""},null,null,null,null,null,null,null,null,null,null,null,null,null,null,null,null,null,null,null,null,null,null,null,null,null,null,null,null,null,null,null,null,null,null,null,null,null,null,null,{"$f":"IF(SUM(F18:AP18)=0,\"\",SUM(F18:AP18))","v":""}]
["","","",null,null,null,null,null,null,null,null,null,null,null,null,null,null,null,null,null,null,null,null,null,null,null,null,null,null,null,null,null,null,null,null,null,null,null,null,null,null,null,{"$f":"IF(SUM(F19:AP19)=0,\"\",SUM(F19:AP19))","v":""}]
["","","",null,null,null,null,null,null,null,null,null,null,null,null,null,null,null,null,null,null,null,null,null,null,null,null,null,null,null,null,null,null,null,null,null,null,null,null,null,null,null,""]
["","","",null,null,null,null,null,null,null,null,null,null,null,null,null,null,null,null,null,null,null,null,null,null,null,null,null,null,null,null,null,null,null,null,null,null,null,null,null,null,null,""]
["","","",null,null,null,null,null,null,null,null,null,null,null,null,null,null,null,null,null,null,null,null,null,null,null,null,null,null,null,null,null,null,null,null,null,null,null,null,null,null,null,""]
["","","",null,null,null,null,null,null,null,null,null,null,null,null,null,null,null,null,null,null,null,null,null,null,null,null,null,null,null,null,null,null,null,null,null,null,null,null,null,null,null,""]
["","","",null,null,null,null,null,null,null,null,null,null,null,null,null,null,null,null,null,null,null,null,null,null,null,null,null,null,null,null,null,null,null,null,null,null,null,null,null,null,null,""]
["","","",null,null,null,null,null,null,null,null,null,null,null,null,null,null,null,null,null,null,null,null,null,null,null,null,null,null,null,null,null,null,null,null,null,null,null,null,null,null,null,""]
["","","",null,null,null,null,null,null,null,null,null,null,null,null,null,null,null,null,null,null,null,null,null,null,null,null,null,null,null,null,null,null,null,null,null,null,null,null,null,null,null,""]
["","","",null,null,null,null,null,null,null,null,null,null,null,null,null,null,null,null,null,null,null,null,null,null,null,null,null,null,null,null,null,null,null,null,null,null,null,null,null,null,null,""]
["","","",null,null,null,null,null,null,null,null,null,null,null,null,null,null,null,null,null,null,null,null,null,null,null,null,null,null,null,null,null,null,null,null,null,null,null,null,null,null,null,""]
["","","",null,null,null,null,null,null,null,null,null,null,null,null,null,null,null,null,null,null,null,null,null,null,null,null,null,null,null,null,null,null,null,null,null,null,null,null,null,null,null,""]
["","","",null,null,null,null,null,null,null,null,null,null,null,null,null,null,null,null,null,null,null,null,null,null,null,null,null,null,null,null,null,null,null,null,null,null,null,null,null,null,null,""]
["","","",null,null,null,null,null,null,null,null,null,null,null,null,null,null,null,null,null,null,null,null,null,null,null,null,null,null,null,null,null,null,null,null,null,null,null,null,null,null,null,""]
["","","",null,null,null,null,null,null,null,null,null,null,null,null,null,null,null,null,null,null,null,null,null,null,null,null,null,null,null,null,null,null,null,null,null,null,null,null,null,null,null,""]
["","","",null,null,null,null,null,null,null,null,null,null,null,null,null,null,null,null,null,null,null,null,null,null,null,null,null,null,null,null,null,null,null,null,null,null,null,null,null,null,null,""]
["","","",null,null,null,null,null,null,null,null,null,null,null,null,null,null,null,null,null,null,null,null,null,null,null,null,null,null,null,null,null,null,null,null,null,null,null,null,null,null,null,""]
["","","",null,null,null,null,null,null,null,null,null,null,null,null,null,null,null,null,null,null,null,null,null,null,null,null,null,null,null,null,null,null,null,null,null,null,null,null,null,null,null,""]
["","","",null,null,null,null,null,null,null,null,null,null,null,null,null,null,null,null,null,null,null,null,null,null,null,null,null,null,null,null,null,null,null,null,null,null,null,null,null,null,null,""]
["","","",null,null,null,null,null,null,null,null,null,null,null,null,null,null,null,null,null,null,null,null,null,null,null,null,null,null,null,null,null,null,null,null,null,null,null,null,null,null,null,""]
["","","",null,null,null,null,null,null,null,null,null,null,null,null,null,null,null,null,null,null,null,null,null,null,null,null,null,null,null,null,null,null,null,null,null,null,null,null,null,null,null,""]
["","","",null,null,null,null,null,null,null,null,null,null,null,null,null,null,null,null,null,null,null,null,null,null,null,null,null,null,null,null,null,null,null,null,null,null,null,null,null,null,null,""]
["","","",null,null,null,null,null,null,null,null,null,null,null,null,null,null,null,null,null,null,null,null,null,null,null,null,null,null,null,null,null,null,null,null,null,null,null,null,null,null,null,""]
["","","",null,null,null,null,null,null,null,null,null,null,null,null,null,null,null,null,null,null,null,null,null,null,null,null,null,null,null,null,null,null,null,null,null,null,null,null,null,null,null,""]
["","","",null,null,null,null,null,null,null,null,null,null,null,null,null,null,null,null,null,null,null,null,null,null,null,null,null,null,null,null,null,null,null,null,null,null,null,null,null,null,null,""]
["","","",null,null,null,null,null,null,null,null,null,null,null,null,null,null,null,null,null,null,null,null,null,null,null,null,null,null,null,null,null,null,null,null,null,null,null,null,null,null,null,""]
["","","",null,null,null,null,null,null,null,null,null,null,null,null,null,null,null,null,null,null,null,null,null,null,null,null,null,null,null,null,null,null,null,null,null,null,null,null,null,null,null,""]
["","","",null,null,null,null,null,null,null,null,null,null,null,null,null,null,null,null,null,null,null,null,null,null,null,null,null,null,null,null,null,null,null,null,null,null,null,null,null,null,null,""]
["","","",null,null,null,null,null,null,null,null,null,null,null,null,null,null,null,null,null,null,null,null,null,null,null,null,null,null,null,null,null,null,null,null,null,null,null,null,null,null,null,{"$f":"IF(SUM(F46:AP46)=0,\"\",SUM(F46:AP46))","v":""}]
[null,null,null,null,null,{"$f":"SUM(F17:F46)","v":0},0,0,0,0,0,0,0,0,0,0,0,0,0,0,0,0,0,0,0,0,0,0,0,0,0,0,0,0,0,0,0,0,0,0,0,0,{"$f":"SUM(F47:AP47)","v":0}]
[]
[]
[]
[null,null,null,null,null,null,null,null,null,null,null,null,null,null,null,null,null,"Collaborator",null,null,null,null,null,null,null,null,null,null,null,null,null,null,"Supervisor"]
[]
[]
[null,null,null,null,null,null,null,null,null,null,null,null,null,null,null,null,null,"Date",null,null,null,null,null,null,null,null,null,null,null,null,null,null,"Date"]
[null,null,null,null,null,null,null,null,null,null,null,null,null,null,null,null,null,"______/______/______",null,null,null,null,null,null,null,null,null,null,null,null,null,null,"______/______/______"]

{"sheet":"February","index":1,"n_rows":55,"n_cols":43,"rows_kept":55,"cut":false,"hidden":false,"merged":[[11,7,11,12],[5,6,5,8],[6,3,6,42],[8,7,8,31],[9,7,9,31],[10,7,10,31],[50,17,50,26],[50,32,50,41],[53,17,53,26],[53,32,53,41],[54,17,54,26],[54,32,54,41]]}
[]
[null,null,null,null,null,null,null,null,"Nome do Ficheiro",null,null,null,{"$f":"CONCATENATE(CalendarYear,\".\",F6,\".\",VLOOKUP(H10,'BD1'!F2:J14,4,FALSE))","v":{"$error":"#N/A"}}]
[null,null,null,null,null,null,null,null,"Nome de Folha",null,null,null,{"$f":"CONCATENATE(E6,\".\",CalendarYear)","v":"February.2023"}]
[null,null,null,"Início da semana","SUN"]
[null,null,null,"Ano",2023]
[null,null,null,"Mês","February",{"$f":"VLOOKUP(E6,'BD1'!B2:C13,2,FALSE)","v":"02"},{"$f":"R16","v":"2023-02-10"}]
[null,null,null,"TIMESHEET"]
[]
[null,null,null,null,null,null,"DEPARTMENT/SERVICE: "]
[null,null,null,null,null,null,"NAME:"]
[null,null,null,null,null,null,"CATEGORY:"]
[null,null,null,null,null,null,"MONHT/YEAR:",{"$f":"CONCATENATE(E6,\"/\",CalendarYear)","v":"February/2023"}]
[]
[null,null,null,null,null,{"$f":"AND(MONTH(F16)=MONTH($G$6),COUNTIF(feriados,F16)>0)","v":false},false,false,false,false,false,false,false,false,false,false,false,false,false,false,false,false,false,false,false,false,false,false,true,false,false,false,false,false,false,false,false,false,false,false,false,false]
[null,null,null,null,null,"Sun","Mon","Tue","Wed","Thu","Fri","Sat","Sun","Mon","Tue","Wed","Thu","Fri","Sat","Sun","Mon","Tue","Wed","Thu","Fri","Sat","Sun","Mon","Tue","Wed","Thu","Fri","Sat","Sun","Mon","Tue","Wed","Thu","Fri","Sat","Sun","Mon","TOTAL "]
[null,null,null,"Project ","Tasks",{"$f":"DaysAndWeeks+DATE(CalendarYear,F6,1)-WEEKDAY(DATE(CalendarYear,F6,1),(WeekStart=\"Mon\")+1)+1","v":"2023-01-29"},"2023-01-30","2023-01-31","2023-02-01","2023-02-02","2023-02-03","2023-02-04",{"$f":"DaysAndWeeks+DATE(CalendarYear,F6,1)-WEEKDAY(DATE(CalendarYear,F6,1),(WeekStart=\"Mon\")+1)+8","v":"2023-02-05"},"2023-02-06","2023-02-07","2023-02-08","2023-02-09","2023-02-10","2023-02-11",{"$f":"DaysAndWeeks+DATE(CalendarYear,F6,1)-WEEKDAY(DATE(CalendarYear,F6,1),(WeekStart=\"Mon\")+1)+15","v":"2023-02-12"},"2023-02-13","2023-02-14","2023-02-15","2023-02-16","2023-02-17","2023-02-18",{"$f":"DaysAndWeeks+DATE(CalendarYear,F6,1)-WEEKDAY(DATE(CalendarYear,F6,1),(WeekStart=\"Mon\")+1)+22","v":"2023-02-19"},"2023-02-20","2023-02-21","2023-02-22","2023-02-23","2023-02-24","2023-02-25",{"$f":"DaysAndWeeks+DATE(CalendarYear,F6,1)-WEEKDAY(DATE(CalendarYear,F6,1),(WeekStart=\"Mon\")+1)+29","v":"2023-02-26"},"2023-02-27","2023-02-28","2023-03-01","2023-03-02","2023-03-03","2023-03-04",{"$f":"DaysAndWeeks+DATE(CalendarYear,F6,1)-WEEKDAY(DATE(CalendarYear,F6,1),(WeekStart=\"Mon\")+1)+36","v":"2023-03-05"},"2023-03-06","HOURS"]
[{"$f":"IF(OR($H$10=\"\",D17=\"\"),\"\",$H$10)","v":""},{"$f":"IF(OR(CalendarYear=\"\",D17=\"\"),\"\",CalendarYear)","v":""},{"$f":"IF(OR($E$6=\"\",D17=\"\"),\"\",$E$6)","v":""},null,null,null,null,null,null,null,null,null,null,null,null,null,null,null,null,null,null,null,null,null,null,null,null,null,null,null,null,null,null,null,null,null,null,null,null,null,null,null,{"$f":"IF(SUM(F17:AP17)=0,\"\",SUM(F17:AP17))","v":""}]
[{"$f":"IF(OR($H$10=\"\",D18=\"\"),\"\",$H$10)","v":""},"",{"$f":"IF(OR($E$6=\"\",D18=\"\"),\"\",$E$6)","v":""},null,null,null,null,null,null,null,null,null,null,null,null,null,null,null,null,null,null,null,null,null,null,null,null,null,null,null,null,null,null,null,null,null,null,null,null,null,null,null,{"$f":"IF(SUM(F18:AP18)=0,\"\",SUM(F18:AP18))","v":""}]
["","","",null,null,null,null,null,null,null,null,null,null,null,null,null,null,null,null,null,null,null,null,null,null,null,null,null,null,null,null,null,null,null,null,null,null,null,null,null,null,null,{"$f":"IF(SUM(F19:AP19)=0,\"\",SUM(F19:AP19))","v":""}]
["","","",null,null,null,null,null,null,null,null,null,null,null,null,null,null,null,null,null,null,null,null,null,null,null,null,null,null,null,null,null,null,null,null,null,null,null,null,null,null,null,""]
["","","",null,null,null,null,null,null,null,null,null,null,null,null,null,null,null,null,null,null,null,null,null,null,null,null,null,null,null,null,null,null,null,null,null,null,null,null,null,null,null,""]
["","","",null,null,null,null,null,null,null,null,null,null,null,null,null,null,null,null,null,null,null,null,null,null,null,null,null,null,null,null,null,null,null,null,null,null,null,null,null,null,null,""]
["","","",null,null,null,null,null,null,null,null,null,null,null,null,null,null,null,null,null,null,null,null,null,null,null,null,null,null,null,null,null,null,null,null,null,null,null,null,null,null,null,""]
["","","",null,null,null,null,null,null,null,null,null,null,null,null,null,null,null,null,null,null,null,null,null,null,null,null,null,null,null,null,null,null,null,null,null,null,null,null,null,null,null,""]
["","","",null,null,null,null,null,null,null,null,null,null,null,null,null,null,null,null,null,null,null,null,null,null,null,null,null,null,null,null,null,null,null,null,null,null,null,null,null,null,null,""]
["","","",null,null,null,null,null,null,null,null,null,null,null,null,null,null,null,null,null,null,null,null,null,null,null,null,null,null,null,null,null,null,null,null,null,null,null,null,null,null,null,""]
["","","",null,null,null,null,null,null,null,null,null,null,null,null,null,null,null,null,null,null,null,null,null,null,null,null,null,null,null,null,null,null,null,null,null,null,null,null,null,null,null,""]
["","","",null,null,null,null,null,null,null,null,null,null,null,null,null,null,null,null,null,null,null,null,null,null,null,null,null,null,null,null,null,null,null,null,null,null,null,null,null,null,null,""]
["","","",null,null,null,null,null,null,null,null,null,null,null,null,null,null,null,null,null,null,null,null,null,null,null,null,null,null,null,null,null,null,null,null,null,null,null,null,null,null,null,""]
["","","",null,null,null,null,null,null,null,null,null,null,null,null,null,null,null,null,null,null,null,null,null,null,null,null,null,null,null,null,null,null,null,null,null,null,null,null,null,null,null,""]
["","","",null,null,null,null,null,null,null,null,null,null,null,null,null,null,null,null,null,null,null,null,null,null,null,null,null,null,null,null,null,null,null,null,null,null,null,null,null,null,null,""]
["","","",null,null,null,null,null,null,null,null,null,null,null,null,null,null,null,null,null,null,null,null,null,null,null,null,null,null,null,null,null,null,null,null,null,null,null,null,null,null,null,""]
["","","",null,null,null,null,null,null,null,null,null,null,null,null,null,null,null,null,null,null,null,null,null,null,null,null,null,null,null,null,null,null,null,null,null,null,null,null,null,null,null,""]
["","","",null,null,null,null,null,null,null,null,null,null,null,null,null,null,null,null,null,null,null,null,null,null,null,null,null,null,null,null,null,null,null,null,null,null,null,null,null,null,null,""]
["","","",null,null,null,null,null,null,null,null,null,null,null,null,null,null,null,null,null,null,null,null,null,null,null,null,null,null,null,null,null,null,null,null,null,null,null,null,null,null,null,""]
["","","",null,null,null,null,null,null,null,null,null,null,null,null,null,null,null,null,null,null,null,null,null,null,null,null,null,null,null,null,null,null,null,null,null,null,null,null,null,null,null,""]
["","","",null,null,null,null,null,null,null,null,null,null,null,null,null,null,null,null,null,null,null,null,null,null,null,null,null,null,null,null,null,null,null,null,null,null,null,null,null,null,null,""]
["","","",null,null,null,null,null,null,null,null,null,null,null,null,null,null,null,null,null,null,null,null,null,null,null,null,null,null,null,null,null,null,null,null,null,null,null,null,null,null,null,""]
["","","",null,null,null,null,null,null,null,null,null,null,null,null,null,null,null,null,null,null,null,null,null,null,null,null,null,null,null,null,null,null,null,null,null,null,null,null,null,null,null,""]
["","","",null,null,null,null,null,null,null,null,null,null,null,null,null,null,null,null,null,null,null,null,null,null,null,null,null,null,null,null,null,null,null,null,null,null,null,null,null,null,null,""]
["","","",null,null,null,null,null,null,null,null,null,null,null,null,null,null,null,null,null,null,null,null,null,null,null,null,null,null,null,null,null,null,null,null,null,null,null,null,null,null,null,""]
["","","",null,null,null,null,null,null,null,null,null,null,null,null,null,null,null,null,null,null,null,null,null,null,null,null,null,null,null,null,null,null,null,null,null,null,null,null,null,null,null,""]
["","","",null,null,null,null,null,null,null,null,null,null,null,null,null,null,null,null,null,null,null,null,null,null,null,null,null,null,null,null,null,null,null,null,null,null,null,null,null,null,null,""]
["","","",null,null,null,null,null,null,null,null,null,null,null,null,null,null,null,null,null,null,null,null,null,null,null,null,null,null,null,null,null,null,null,null,null,null,null,null,null,null,null,""]
["","","",null,null,null,null,null,null,null,null,null,null,null,null,null,null,null,null,null,null,null,null,null,null,null,null,null,null,null,null,null,null,null,null,null,null,null,null,null,null,null,""]
["","","",null,null,null,null,null,null,null,null,null,null,null,null,null,null,null,null,null,null,null,null,null,null,null,null,null,null,null,null,null,null,null,null,null,null,null,null,null,null,null,{"$f":"IF(SUM(F46:AP46)=0,\"\",SUM(F46:AP46))","v":""}]
[null,null,null,null,null,{"$f":"SUM(F17:F46)","v":0},0,0,0,0,0,0,0,0,0,0,0,0,0,0,0,0,0,0,0,0,0,0,0,0,0,0,0,0,0,0,0,0,0,0,0,0,{"$f":"SUM(F47:AP47)","v":0}]
[]
[]
[]
[null,null,null,null,null,null,null,null,null,null,null,null,null,null,null,null,null,"Collaborator",null,null,null,null,null,null,null,null,null,null,null,null,null,null,"Supervisor"]
[]
[]
[null,null,null,null,null,null,null,null,null,null,null,null,null,null,null,null,null,"Date",null,null,null,null,null,null,null,null,null,null,null,null,null,null,"Date"]
[null,null,null,null,null,null,null,null,null,null,null,null,null,null,null,null,null,"______/______/______",null,null,null,null,null,null,null,null,null,null,null,null,null,null,"______/______/______"]

{"sheet":"March","index":2,"n_rows":55,"n_cols":43,"rows_kept":55,"cut":false,"hidden":false,"merged":[[11,7,11,12],[5,6,5,8],[6,3,6,42],[8,7,8,31],[9,7,9,31],[10,7,10,31],[50,17,50,26],[50,32,50,41],[53,17,53,26],[53,32,53,41],[54,17,54,26],[54,32,54,41]]}
[]
[null,null,null,null,null,null,null,null,"Nome do Ficheiro",null,null,null,{"$f":"CONCATENATE(CalendarYear,\".\",F6,\".\",VLOOKUP(H10,'BD1'!F2:J14,4,FALSE))","v":{"$error":"#N/A"}}]
[null,null,null,null,null,null,null,null,"Nome de Folha",null,null,null,{"$f":"CONCATENATE(E6,\".\",CalendarYear)","v":"March.2023"}]
[null,null,null,"Início da semana","SUN"]
[null,null,null,"Ano",2023]
[null,null,null,"Mês","March",{"$f":"VLOOKUP(E6,'BD1'!B2:C13,2,FALSE)","v":"03"},{"$f":"R16","v":"2023-03-10"}]
[null,null,null,"TIMESHEET"]
[]
[null,null,null,null,null,null,"DEPARTMENT/SERVICE: "]
[null,null,null,null,null,null,"NAME:"]
[null,null,null,null,null,null,"CATEGORY:"]
[null,null,null,null,null,null,"MONHT/YEAR:",{"$f":"CONCATENATE(E6,\"/\",CalendarYear)","v":"March/2023"}]
[]
[null,null,null,null,null,{"$f":"AND(MONTH(F16)=MONTH($G$6),COUNTIF(feriados,F16)>0)","v":false},false,false,false,false,false,false,false,false,false,false,false,false,false,false,false,false,false,false,false,false,false,false,false,false,false,false,false,false,false,false,false,false,false,false,false,false]
[null,null,null,null,null,"Sun","Mon","Tue","Wed","Thu","Fri","Sat","Sun","Mon","Tue","Wed","Thu","Fri","Sat","Sun","Mon","Tue","Wed","Thu","Fri","Sat","Sun","Mon","Tue","Wed","Thu","Fri","Sat","Sun","Mon","Tue","Wed","Thu","Fri","Sat","Sun","Mon","TOTAL "]
[null,null,null,"Project ","Tasks",{"$f":"DaysAndWeeks+DATE(CalendarYear,F6,1)-WEEKDAY(DATE(CalendarYear,F6,1),(WeekStart=\"Mon\")+1)+1","v":"2023-02-26"},"2023-02-27","2023-02-28","2023-03-01","2023-03-02","2023-03-03","2023-03-04",{"$f":"DaysAndWeeks+DATE(CalendarYear,F6,1)-WEEKDAY(DATE(CalendarYear,F6,1),(WeekStart=\"Mon\")+1)+8","v":"2023-03-05"},"2023-03-06","2023-03-07","2023-03-08","2023-03-09","2023-03-10","2023-03-11",{"$f":"DaysAndWeeks+DATE(CalendarYear,F6,1)-WEEKDAY(DATE(CalendarYear,F6,1),(WeekStart=\"Mon\")+1)+15","v":"2023-03-12"},"2023-03-13","2023-03-14","2023-03-15","2023-03-16","2023-03-17","2023-03-18",{"$f":"DaysAndWeeks+DATE(CalendarYear,F6,1)-WEEKDAY(DATE(CalendarYear,F6,1),(WeekStart=\"Mon\")+1)+22","v":"2023-03-19"},"2023-03-20","2023-03-21","2023-03-22","2023-03-23","2023-03-24","2023-03-25",{"$f":"DaysAndWeeks+DATE(CalendarYear,F6,1)-WEEKDAY(DATE(CalendarYear,F6,1),(WeekStart=\"Mon\")+1)+29","v":"2023-03-26"},"2023-03-27","2023-03-28","2023-03-29","2023-03-30","2023-03-31","2023-04-01",{"$f":"DaysAndWeeks+DATE(CalendarYear,F6,1)-WEEKDAY(DATE(CalendarYear,F6,1),(WeekStart=\"Mon\")+1)+36","v":"2023-04-02"},"2023-04-03","HOURS"]
[{"$f":"IF(OR($H$10=\"\",D17=\"\"),\"\",$H$10)","v":""},{"$f":"IF(OR(CalendarYear=\"\",D17=\"\"),\"\",CalendarYear)","v":""},{"$f":"IF(OR($E$6=\"\",D17=\"\"),\"\",$E$6)","v":""},null,null,null,null,null,null,null,null,null,null,null,null,null,null,null,null,null,null,null,null,null,null,null,null,null,null,null,null,null,null,null,null,null,null,null,null,null,null,null,{"$f":"IF(SUM(F17:AP17)=0,\"\",SUM(F17:AP17))","v":""}]
[{"$f":"IF(OR($H$10=\"\",D18=\"\"),\"\",$H$10)","v":""},"",{"$f":"IF(OR($E$6=\"\",D18=\"\"),\"\",$E$6)","v":""},null,null,null,null,null,null,null,null,null,null,null,null,null,null,null,null,null,null,null,null,null,null,null,null,null,null,null,null,null,null,null,null,null,null,null,null,null,null,null,{"$f":"IF(SUM(F18:AP18)=0,\"\",SUM(F18:AP18))","v":""}]
["","","",null,null,null,null,null,null,null,null,null,null,null,null,null,null,null,null,null,null,null,null,null,null,null,null,null,null,null,null,null,null,null,null,null,null,null,null,null,null,null,{"$f":"IF(SUM(F19:AP19)=0,\"\",SUM(F19:AP19))","v":""}]
["","","",null,null,null,null,null,null,null,null,null,null,null,null,null,null,null,null,null,null,null,null,null,null,null,null,null,null,null,null,null,null,null,null,null,null,null,null,null,null,null,""]
["","","",null,null,null,null,null,null,null,null,null,null,null,null,null,null,null,null,null,null,null,null,null,null,null,null,null,null,null,null,null,null,null,null,null,null,null,null,null,null,null,""]
["","","",null,null,null,null,null,null,null,null,null,null,null,null,null,null,null,null,null,null,null,null,null,null,null,null,null,null,null,null,null,null,null,null,null,null,null,null,null,null,null,""]
["","","",null,null,null,null,null,null,null,null,null,null,null,null,null,null,null,null,null,null,null,null,null,null,null,null,null,null,null,null,null,null,null,null,null,null,null,null,null,null,null,""]
["","","",null,null,null,null,null,null,null,null,null,null,null,null,null,null,null,null,null,null,null,null,null,null,null,null,null,null,null,null,null,null,null,null,null,null,null,null,null,null,null,""]
["","","",null,null,null,null,null,null,null,null,null,null,null,null,null,null,null,null,null,null,null,null,null,null,null,null,null,null,null,null,null,null,null,null,null,null,null,null,null,null,null,""]
["","","",null,null,null,null,null,null,null,null,null,null,null,null,null,null,null,null,null,null,null,null,null,null,null,null,null,null,null,null,null,null,null,null,null,null,null,null,null,null,null,""]
["","","",null,null,null,null,null,null,null,null,null,null,null,null,null,null,null,null,null,null,null,null,null,null,null,null,null,null,null,null,null,null,null,null,null,null,null,null,null,null,null,""]
["","","",null,null,null,null,null,null,null,null,null,null,null,null,null,null,null,null,null,null,null,null,null,null,null,null,null,null,null,null,null,null,null,null,null,null,null,null,null,null,null,""]
["","","",null,null,null,null,null,null,null,null,null,null,null,null,null,null,null,null,null,null,null,null,null,null,null,null,null,null,null,null,null,null,null,null,null,null,null,null,null,null,null,""]
["","","",null,null,null,null,null,null,null,null,null,null,null,null,null,null,null,null,null,null,null,null,null,null,null,null,null,null,null,null,null,null,null,null,null,null,null,null,null,null,null,""]
["","","",null,null,null,null,null,null,null,null,null,null,null,null,null,null,null,null,null,null,null,null,null,null,null,null,null,null,null,null,null,null,null,null,null,null,null,null,null,null,null,""]
["","","",null,null,null,null,null,null,null,null,null,null,null,null,null,null,null,null,null,null,null,null,null,null,null,null,null,null,null,null,null,null,null,null,null,null,null,null,null,null,null,""]
["","","",null,null,null,null,null,null,null,null,null,null,null,null,null,null,null,null,null,null,null,null,null,null,null,null,null,null,null,null,null,null,null,null,null,null,null,null,null,null,null,""]
["","","",null,null,null,null,null,null,null,null,null,null,null,null,null,null,null,null,null,null,null,null,null,null,null,null,null,null,null,null,null,null,null,null,null,null,null,null,null,null,null,""]
["","","",null,null,null,null,null,null,null,null,null,null,null,null,null,null,null,null,null,null,null,null,null,null,null,null,null,null,null,null,null,null,null,null,null,null,null,null,null,null,null,""]
["","","",null,null,null,null,null,null,null,null,null,null,null,null,null,null,null,null,null,null,null,null,null,null,null,null,null,null,null,null,null,null,null,null,null,null,null,null,null,null,null,""]
["","","",null,null,null,null,null,null,null,null,null,null,null,null,null,null,null,null,null,null,null,null,null,null,null,null,null,null,null,null,null,null,null,null,null,null,null,null,null,null,null,""]
["","","",null,null,null,null,null,null,null,null,null,null,null,null,null,null,null,null,null,null,null,null,null,null,null,null,null,null,null,null,null,null,null,null,null,null,null,null,null,null,null,""]
["","","",null,null,null,null,null,null,null,null,null,null,null,null,null,null,null,null,null,null,null,null,null,null,null,null,null,null,null,null,null,null,null,null,null,null,null,null,null,null,null,""]
["","","",null,null,null,null,null,null,null,null,null,null,null,null,null,null,null,null,null,null,null,null,null,null,null,null,null,null,null,null,null,null,null,null,null,null,null,null,null,null,null,""]
["","","",null,null,null,null,null,null,null,null,null,null,null,null,null,null,null,null,null,null,null,null,null,null,null,null,null,null,null,null,null,null,null,null,null,null,null,null,null,null,null,""]
["","","",null,null,null,null,null,null,null,null,null,null,null,null,null,null,null,null,null,null,null,null,null,null,null,null,null,null,null,null,null,null,null,null,null,null,null,null,null,null,null,""]
["","","",null,null,null,null,null,null,null,null,null,null,null,null,null,null,null,null,null,null,null,null,null,null,null,null,null,null,null,null,null,null,null,null,null,null,null,null,null,null,null,""]
["","","",null,null,null,null,null,null,null,null,null,null,null,null,null,null,null,null,null,null,null,null,null,null,null,null,null,null,null,null,null,null,null,null,null,null,null,null,null,null,null,""]
["","","",null,null,null,null,null,null,null,null,null,null,null,null,null,null,null,null,null,null,null,null,null,null,null,null,null,null,null,null,null,null,null,null,null,null,null,null,null,null,null,""]
["","","",null,null,null,null,null,null,null,null,null,null,null,null,null,null,null,null,null,null,null,null,null,null,null,null,null,null,null,null,null,null,null,null,null,null,null,null,null,null,null,{"$f":"IF(SUM(F46:AP46)=0,\"\",SUM(F46:AP46))","v":""}]
[null,null,null,null,null,{"$f":"SUM(F17:F46)","v":0},0,0,0,0,0,0,0,0,0,0,0,0,0,0,0,0,0,0,0,0,0,0,0,0,0,0,0,0,0,0,0,0,0,0,0,0,{"$f":"SUM(F47:AP47)","v":0}]
[]
[]
[]
[null,null,null,null,null,null,null,null,null,null,null,null,null,null,null,null,null,"Collaborator",null,null,null,null,null,null,null,null,null,null,null,null,null,null,"Supervisor"]
[]
[]
[null,null,null,null,null,null,null,null,null,null,null,null,null,null,null,null,null,"Date",null,null,null,null,null,null,null,null,null,null,null,null,null,null,"Date"]
[null,null,null,null,null,null,null,null,null,null,null,null,null,null,null,null,null,"______/______/______",null,null,null,null,null,null,null,null,null,null,null,null,null,null,"______/______/______"]

{"sheet":"April","index":3,"n_rows":55,"n_cols":43,"rows_kept":55,"cut":false,"hidden":false,"merged":[[11,7,11,12],[5,6,5,8],[6,3,6,42],[8,7,8,31],[9,7,9,31],[10,7,10,31],[50,17,50,26],[50,32,50,41],[53,17,53,26],[53,32,53,41],[54,17,54,26],[54,32,54,41]]}
[]
[null,null,null,null,null,null,null,null,"Nome do Ficheiro",null,null,null,{"$f":"CONCATENATE(CalendarYear,\".\",F6,\".\",VLOOKUP(H10,'BD1'!F2:J14,4,FALSE))","v":{"$error":"#N/A"}}]
[null,null,null,null,null,null,null,null,"Nome de Folha",null,null,null,{"$f":"CONCATENATE(E6,\".\",CalendarYear)","v":"April.2023"}]
[null,null,null,"Início da semana","SUN"]
[null,null,null,"Ano",2023]
[null,null,null,"Mês","April",{"$f":"VLOOKUP(E6,'BD1'!B2:C13,2,FALSE)","v":"04"},{"$f":"R16","v":"2023-04-07"}]
[null,null,null,"TIMESHEET"]
[]
[null,null,null,null,null,null,"DEPARTMENT/SERVICE: "]
[null,null,null,null,null,null,"NAME:"]
[null,null,null,null,null,null,"CATEGORY:"]
[null,null,null,null,null,null,"MONHT/YEAR:",{"$f":"CONCATENATE(E6,\"/\",CalendarYear)","v":"April/2023"}]
[]
[null,null,null,null,null,{"$f":"AND(MONTH(F16)=MONTH($G$6),COUNTIF(feriados,F16)>0)","v":false},false,false,false,false,false,false,false,false,false,false,false,true,false,true,false,false,false,false,false,false,false,false,false,false,false,false,false,false,false,true,false,false,false,false,false,false]
[null,null,null,null,null,"Sun","Mon","Tue","Wed","Thu","Fri","Sat","Sun","Mon","Tue","Wed","Thu","Fri","Sat","Sun","Mon","Tue","Wed","Thu","Fri","Sat","Sun","Mon","Tue","Wed","Thu","Fri","Sat","Sun","Mon","Tue","Wed","Thu","Fri","Sat","Sun","Mon","TOTAL "]
[null,null,null,"Project ","Tasks",{"$f":"DaysAndWeeks+DATE(CalendarYear,F6,1)-WEEKDAY(DATE(CalendarYear,F6,1),(WeekStart=\"Mon\")+1)+1","v":"2023-03-26"},"2023-03-27","2023-03-28","2023-03-29","2023-03-30","2023-03-31","2023-04-01",{"$f":"DaysAndWeeks+DATE(CalendarYear,F6,1)-WEEKDAY(DATE(CalendarYear,F6,1),(WeekStart=\"Mon\")+1)+8","v":"2023-04-02"},"2023-04-03","2023-04-04","2023-04-05","2023-04-06","2023-04-07","2023-04-08",{"$f":"DaysAndWeeks+DATE(CalendarYear,F6,1)-WEEKDAY(DATE(CalendarYear,F6,1),(WeekStart=\"Mon\")+1)+15","v":"2023-04-09"},"2023-04-10","2023-04-11","2023-04-12","2023-04-13","2023-04-14","2023-04-15",{"$f":"DaysAndWeeks+DATE(CalendarYear,F6,1)-WEEKDAY(DATE(CalendarYear,F6,1),(WeekStart=\"Mon\")+1)+22","v":"2023-04-16"},"2023-04-17","2023-04-18","2023-04-19","2023-04-20","2023-04-21","2023-04-22",{"$f":"DaysAndWeeks+DATE(CalendarYear,F6,1)-WEEKDAY(DATE(CalendarYear,F6,1),(WeekStart=\"Mon\")+1)+29","v":"2023-04-23"},"2023-04-24","2023-04-25","2023-04-26","2023-04-27","2023-04-28","2023-04-29",{"$f":"DaysAndWeeks+DATE(CalendarYear,F6,1)-WEEKDAY(DATE(CalendarYear,F6,1),(WeekStart=\"Mon\")+1)+36","v":"2023-04-30"},"2023-05-01","HOURS"]
[{"$f":"IF(OR($H$10=\"\",D17=\"\"),\"\",$H$10)","v":""},{"$f":"IF(OR(CalendarYear=\"\",D17=\"\"),\"\",CalendarYear)","v":""},{"$f":"IF(OR($E$6=\"\",D17=\"\"),\"\",$E$6)","v":""},null,null,null,null,null,null,null,null,null,null,null,null,null,null,null,null,null,null,null,null,null,null,null,null,null,null,null,null,null,null,null,null,null,null,null,null,null,null,null,{"$f":"IF(SUM(F17:AP17)=0,\"\",SUM(F17:AP17))","v":""}]
[{"$f":"IF(OR($H$10=\"\",D18=\"\"),\"\",$H$10)","v":""},"",{"$f":"IF(OR($E$6=\"\",D18=\"\"),\"\",$E$6)","v":""},null,null,null,null,null,null,null,null,null,null,null,null,null,null,null,null,null,null,null,null,null,null,null,null,null,null,null,null,null,null,null,null,null,null,null,null,null,null,null,{"$f":"IF(SUM(F18:AP18)=0,\"\",SUM(F18:AP18))","v":""}]
["","","",null,null,null,null,null,null,null,null,null,null,null,null,null,null,null,null,null,null,null,null,null,null,null,null,null,null,null,null,null,null,null,null,null,null,null,null,null,null,null,{"$f":"IF(SUM(F19:AP19)=0,\"\",SUM(F19:AP19))","v":""}]
["","","",null,null,null,null,null,null,null,null,null,null,null,null,null,null,null,null,null,null,null,null,null,null,null,null,null,null,null,null,null,null,null,null,null,null,null,null,null,null,null,""]
["","","",null,null,null,null,null,null,null,null,null,null,null,null,null,null,null,null,null,null,null,null,null,null,null,null,null,null,null,null,null,null,null,null,null,null,null,null,null,null,null,""]
["","","",null,null,null,null,null,null,null,null,null,null,null,null,null,null,null,null,null,null,null,null,null,null,null,null,null,null,null,null,null,null,null,null,null,null,null,null,null,null,null,""]
["","","",null,null,null,null,null,null,null,null,null,null,null,null,null,null,null,null,null,null,null,null,null,null,null,null,null,null,null,null,null,null,null,null,null,null,null,null,null,null,null,""]
["","","",null,null,null,null,null,null,null,null,null,null,null,null,null,null,null,null,null,null,null,null,null,null,null,null,null,null,null,null,null,null,null,null,null,null,null,null,null,null,null,""]
["","","",null,null,null,null,null,null,null,null,null,null,null,null,null,null,null,null,null,null,null,null,null,null,null,null,null,null,null,null,null,null,null,null,null,null,null,null,null,null,null,""]
["","","",null,null,null,null,null,null,null,null,null,null,null,null,null,null,null,null,null,null,null,null,null,null,null,null,null,null,null,null,null,null,null,null,null,null,null,null,null,null,null,""]
["","","",null,null,null,null,null,null,null,null,null,null,null,null,null,null,null,null,null,null,null,null,null,null,null,null,null,null,null,null,null,null,null,null,null,null,null,null,null,null,null,""]
["","","",null,null,null,null,null,null,null,null,null,null,null,null,null,null,null,null,null,null,null,null,null,null,null,null,null,null,null,null,null,null,null,null,null,null,null,null,null,null,null,""]
["","","",null,null,null,null,null,null,null,null,null,null,null,null,null,null,null,null,null,null,null,null,null,null,null,null,null,null,null,null,null,null,null,null,null,null,null,null,null,null,null,""]
["","","",null,null,null,null,null,null,null,null,null,null,null,null,null,null,null,null,null,null,null,null,null,null,null,null,null,null,null,null,null,null,null,null,null,null,null,null,null,null,null,""]
["","","",null,null,null,null,null,null,null,null,null,null,null,null,null,null,null,null,null,null,null,null,null,null,null,null,null,null,null,null,null,null,null,null,null,null,null,null,null,null,null,""]
["","","",null,null,null,null,null,null,null,null,null,null,null,null,null,null,null,null,null,null,null,null,null,null,null,null,null,null,null,null,null,null,null,null,null,null,null,null,null,null,null,""]
["","","",null,null,null,null,null,null,null,null,null,null,null,null,null,null,null,null,null,null,null,null,null,null,null,null,null,null,null,null,null,null,null,null,null,null,null,null,null,null,null,""]
["","","",null,null,null,null,null,null,null,null,null,null,null,null,null,null,null,null,null,null,null,null,null,null,null,null,null,null,null,null,null,null,null,null,null,null,null,null,null,null,null,""]
["","","",null,null,null,null,null,null,null,null,null,null,null,null,null,null,null,null,null,null,null,null,null,null,null,null,null,null,null,null,null,null,null,null,null,null,null,null,null,null,null,""]
["","","",null,null,null,null,null,null,null,null,null,null,null,null,null,null,null,null,null,null,null,null,null,null,null,null,null,null,null,null,null,null,null,null,null,null,null,null,null,null,null,""]
["","","",null,null,null,null,null,null,null,null,null,null,null,null,null,null,null,null,null,null,null,null,null,null,null,null,null,null,null,null,null,null,null,null,null,null,null,null,null,null,null,""]
["","","",null,null,null,null,null,null,null,null,null,null,null,null,null,null,null,null,null,null,null,null,null,null,null,null,null,null,null,null,null,null,null,null,null,null,null,null,null,null,null,""]
["","","",null,null,null,null,null,null,null,null,null,null,null,null,null,null,null,null,null,null,null,null,null,null,null,null,null,null,null,null,null,null,null,null,null,null,null,null,null,null,null,""]
["","","",null,null,null,null,null,null,null,null,null,null,null,null,null,null,null,null,null,null,null,null,null,null,null,null,null,null,null,null,null,null,null,null,null,null,null,null,null,null,null,""]
["","","",null,null,null,null,null,null,null,null,null,null,null,null,null,null,null,null,null,null,null,null,null,null,null,null,null,null,null,null,null,null,null,null,null,null,null,null,null,null,null,""]
["","","",null,null,null,null,null,null,null,null,null,null,null,null,null,null,null,null,null,null,null,null,null,null,null,null,null,null,null,null,null,null,null,null,null,null,null,null,null,null,null,""]
["","","",null,null,null,null,null,null,null,null,null,null,null,null,null,null,null,null,null,null,null,null,null,null,null,null,null,null,null,null,null,null,null,null,null,null,null,null,null,null,null,""]
["","","",null,null,null,null,null,null,null,null,null,null,null,null,null,null,null,null,null,null,null,null,null,null,null,null,null,null,null,null,null,null,null,null,null,null,null,null,null,null,null,""]
["","","",null,null,null,null,null,null,null,null,null,null,null,null,null,null,null,null,null,null,null,null,null,null,null,null,null,null,null,null,null,null,null,null,null,null,null,null,null,null,null,""]
["","","",null,null,null,null,null,null,null,null,null,null,null,null,null,null,null,null,null,null,null,null,null,null,null,null,null,null,null,null,null,null,null,null,null,null,null,null,null,null,null,{"$f":"IF(SUM(F46:AP46)=0,\"\",SUM(F46:AP46))","v":""}]
[null,null,null,null,null,{"$f":"SUM(F17:F46)","v":0},0,0,0,0,0,0,0,0,0,0,0,0,0,0,0,0,0,0,0,0,0,0,0,0,0,0,0,0,0,0,0,0,0,0,0,0,{"$f":"SUM(F47:AP47)","v":0}]
[]
[]
[]
[null,null,null,null,null,null,null,null,null,null,null,null,null,null,null,null,null,"Collaborator",null,null,null,null,null,null,null,null,null,null,null,null,null,null,"Supervisor"]
[]
[]
[null,null,null,null,null,null,null,null,null,null,null,null,null,null,null,null,null,"Date",null,null,null,null,null,null,null,null,null,null,null,null,null,null,"Date"]
[null,null,null,null,null,null,null,null,null,null,null,null,null,null,null,null,null,"______/______/______",null,null,null,null,null,null,null,null,null,null,null,null,null,null,"______/______/______"]

{"sheet":"May","index":4,"n_rows":55,"n_cols":43,"rows_kept":55,"cut":false,"hidden":false,"merged":[[11,7,11,12],[5,6,5,8],[6,3,6,42],[8,7,8,31],[9,7,9,31],[10,7,10,31],[50,17,50,26],[50,32,50,41],[53,17,53,26],[53,32,53,41],[54,17,54,26],[54,32,54,41]]}
[]
[null,null,null,null,null,null,null,null,"Nome do Ficheiro",null,null,null,{"$f":"CONCATENATE(CalendarYear,\".\",F6,\".\",VLOOKUP(H10,'BD1'!F2:J14,4,FALSE))","v":{"$error":"#N/A"}}]
[null,null,null,null,null,null,null,null,"Nome de Folha",null,null,null,{"$f":"CONCATENATE(E6,\".\",CalendarYear)","v":"May.2023"}]
[null,null,null,"Início da semana","SUN"]
[null,null,null,"Ano",2023]
[null,null,null,"Mês","May",{"$f":"VLOOKUP(E6,'BD1'!B2:C13,2,FALSE)","v":"05"},{"$f":"R16","v":"2023-05-12"}]
[null,null,null,"TIMESHEET"]
[]
[null,null,null,null,null,null,"DEPARTMENT/SERVICE: "]
[null,null,null,null,null,null,"NAME:"]
[null,null,null,null,null,null,"CATEGORY:"]
[null,null,null,null,null,null,"MONHT/YEAR:",{"$f":"CONCATENATE(E6,\"/\",CalendarYear)","v":"May/2023"}]
[]
[null,null,null,null,null,{"$f":"AND(MONTH(F16)=MONTH($G$6),COUNTIF(feriados,F16)>0)","v":false},true,false,false,false,false,false,false,false,false,false,false,false,false,false,false,false,false,false,false,false,false,false,false,false,false,false,false,false,false,false,false,false,false,false,false,false]
[null,null,null,null,null,"Sun","Mon","Tue","Wed","Thu","Fri","Sat","Sun","Mon","Tue","Wed","Thu","Fri","Sat","Sun","Mon","Tue","Wed","Thu","Fri","Sat","Sun","Mon","Tue","Wed","Thu","Fri","Sat","Sun","Mon","Tue","Wed","Thu","Fri","Sat","Sun","Mon","TOTAL "]
[null,null,null,"Project ","Tasks",{"$f":"DaysAndWeeks+DATE(CalendarYear,F6,1)-WEEKDAY(DATE(CalendarYear,F6,1),(WeekStart=\"Mon\")+1)+1","v":"2023-04-30"},"2023-05-01","2023-05-02","2023-05-03","2023-05-04","2023-05-05","2023-05-06",{"$f":"DaysAndWeeks+DATE(CalendarYear,F6,1)-WEEKDAY(DATE(CalendarYear,F6,1),(WeekStart=\"Mon\")+1)+8","v":"2023-05-07"},"2023-05-08","2023-05-09","2023-05-10","2023-05-11","2023-05-12","2023-05-13",{"$f":"DaysAndWeeks+DATE(CalendarYear,F6,1)-WEEKDAY(DATE(CalendarYear,F6,1),(WeekStart=\"Mon\")+1)+15","v":"2023-05-14"},"2023-05-15","2023-05-16","2023-05-17","2023-05-18","2023-05-19","2023-05-20",{"$f":"DaysAndWeeks+DATE(CalendarYear,F6,1)-WEEKDAY(DATE(CalendarYear,F6,1),(WeekStart=\"Mon\")+1)+22","v":"2023-05-21"},"2023-05-22","2023-05-23","2023-05-24","2023-05-25","2023-05-26","2023-05-27",{"$f":"DaysAndWeeks+DATE(CalendarYear,F6,1)-WEEKDAY(DATE(CalendarYear,F6,1),(WeekStart=\"Mon\")+1)+29","v":"2023-05-28"},"2023-05-29","2023-05-30","2023-05-31","2023-06-01","2023-06-02","2023-06-03",{"$f":"DaysAndWeeks+DATE(CalendarYear,F6,1)-WEEKDAY(DATE(CalendarYear,F6,1),(WeekStart=\"Mon\")+1)+36","v":"2023-06-04"},"2023-06-05","HOURS"]
[{"$f":"IF(OR($H$10=\"\",D17=\"\"),\"\",$H$10)","v":""},{"$f":"IF(OR(CalendarYear=\"\",D17=\"\"),\"\",CalendarYear)","v":""},{"$f":"IF(OR($E$6=\"\",D17=\"\"),\"\",$E$6)","v":""},null,null,null,null,null,null,null,null,null,null,null,null,null,null,null,null,null,null,null,null,null,null,null,null,null,null,null,null,null,null,null,null,null,null,null,null,null,null,null,{"$f":"IF(SUM(F17:AP17)=0,\"\",SUM(F17:AP17))","v":""}]
[{"$f":"IF(OR($H$10=\"\",D18=\"\"),\"\",$H$10)","v":""},"",{"$f":"IF(OR($E$6=\"\",D18=\"\"),\"\",$E$6)","v":""},null,null,null,null,null,null,null,null,null,null,null,null,null,null,null,null,null,null,null,null,null,null,null,null,null,null,null,null,null,null,null,null,null,null,null,null,null,null,null,{"$f":"IF(SUM(F18:AP18)=0,\"\",SUM(F18:AP18))","v":""}]
["","","",null,null,null,null,null,null,null,null,null,null,null,null,null,null,null,null,null,null,null,null,null,null,null,null,null,null,null,null,null,null,null,null,null,null,null,null,null,null,null,{"$f":"IF(SUM(F19:AP19)=0,\"\",SUM(F19:AP19))","v":""}]
["","","",null,null,null,null,null,null,null,null,null,null,null,null,null,null,null,null,null,null,null,null,null,null,null,null,null,null,null,null,null,null,null,null,null,null,null,null,null,null,null,""]
["","","",null,null,null,null,null,null,null,null,null,null,null,null,null,null,null,null,null,null,null,null,null,null,null,null,null,null,null,null,null,null,null,null,null,null,null,null,null,null,null,""]
["","","",null,null,null,null,null,null,null,null,null,null,null,null,null,null,null,null,null,null,null,null,null,null,null,null,null,null,null,null,null,null,null,null,null,null,null,null,null,null,null,""]
["","","",null,null,null,null,null,null,null,null,null,null,null,null,null,null,null,null,null,null,null,null,null,null,null,null,null,null,null,null,null,null,null,null,null,null,null,null,null,null,null,""]
["","","",null,null,null,null,null,null,null,null,null,null,null,null,null,null,null,null,null,null,null,null,null,null,null,null,null,null,null,null,null,null,null,null,null,null,null,null,null,null,null,""]
["","","",null,null,null,null,null,null,null,null,null,null,null,null,null,null,null,null,null,null,null,null,null,null,null,null,null,null,null,null,null,null,null,null,null,null,null,null,null,null,null,""]
["","","",null,null,null,null,null,null,null,null,null,null,null,null,null,null,null,null,null,null,null,null,null,null,null,null,null,null,null,null,null,null,null,null,null,null,null,null,null,null,null,""]
["","","",null,null,null,null,null,null,null,null,null,null,null,null,null,null,null,null,null,null,null,null,null,null,null,null,null,null,null,null,null,null,null,null,null,null,null,null,null,null,null,""]
["","","",null,null,null,null,null,null,null,null,null,null,null,null,null,null,null,null,null,null,null,null,null,null,null,null,null,null,null,null,null,null,null,null,null,null,null,null,null,null,null,""]
["","","",null,null,null,null,null,null,null,null,null,null,null,null,null,null,null,null,null,null,null,null,null,null,null,null,null,null,null,null,null,null,null,null,null,null,null,null,null,null,null,""]
["","","",null,null,null,null,null,null,null,null,null,null,null,null,null,null,null,null,null,null,null,null,null,null,null,null,null,null,null,null,null,null,null,null,null,null,null,null,null,null,null,""]
["","","",null,null,null,null,null,null,null,null,null,null,null,null,null,null,null,null,null,null,null,null,null,null,null,null,null,null,null,null,null,null,null,null,null,null,null,null,null,null,null,""]
["","","",null,null,null,null,null,null,null,null,null,null,null,null,null,null,null,null,null,null,null,null,null,null,null,null,null,null,null,null,null,null,null,null,null,null,null,null,null,null,null,""]
["","","",null,null,null,null,null,null,null,null,null,null,null,null,null,null,null,null,null,null,null,null,null,null,null,null,null,null,null,null,null,null,null,null,null,null,null,null,null,null,null,""]
["","","",null,null,null,null,null,null,null,null,null,null,null,null,null,null,null,null,null,null,null,null,null,null,null,null,null,null,null,null,null,null,null,null,null,null,null,null,null,null,null,""]
["","","",null,null,null,null,null,null,null,null,null,null,null,null,null,null,null,null,null,null,null,null,null,null,null,null,null,null,null,null,null,null,null,null,null,null,null,null,null,null,null,""]
["","","",null,null,null,null,null,null,null,null,null,null,null,null,null,null,null,null,null,null,null,null,null,null,null,null,null,null,null,null,null,null,null,null,null,null,null,null,null,null,null,""]
["","","",null,null,null,null,null,null,null,null,null,null,null,null,null,null,null,null,null,null,null,null,null,null,null,null,null,null,null,null,null,null,null,null,null,null,null,null,null,null,null,""]
["","","",null,null,null,null,null,null,null,null,null,null,null,null,null,null,null,null,null,null,null,null,null,null,null,null,null,null,null,null,null,null,null,null,null,null,null,null,null,null,null,""]
["","","",null,null,null,null,null,null,null,null,null,null,null,null,null,null,null,null,null,null,null,null,null,null,null,null,null,null,null,null,null,null,null,null,null,null,null,null,null,null,null,""]
["","","",null,null,null,null,null,null,null,null,null,null,null,null,null,null,null,null,null,null,null,null,null,null,null,null,null,null,null,null,null,null,null,null,null,null,null,null,null,null,null,""]
["","","",null,null,null,null,null,null,null,null,null,null,null,null,null,null,null,null,null,null,null,null,null,null,null,null,null,null,null,null,null,null,null,null,null,null,null,null,null,null,null,""]
["","","",null,null,null,null,null,null,null,null,null,null,null,null,null,null,null,null,null,null,null,null,null,null,null,null,null,null,null,null,null,null,null,null,null,null,null,null,null,null,null,""]
["","","",null,null,null,null,null,null,null,null,null,null,null,null,null,null,null,null,null,null,null,null,null,null,null,null,null,null,null,null,null,null,null,null,null,null,null,null,null,null,null,""]
["","","",null,null,null,null,null,null,null,null,null,null,null,null,null,null,null,null,null,null,null,null,null,null,null,null,null,null,null,null,null,null,null,null,null,null,null,null,null,null,null,""]
["","","",null,null,null,null,null,null,null,null,null,null,null,null,null,null,null,null,null,null,null,null,null,null,null,null,null,null,null,null,null,null,null,null,null,null,null,null,null,null,null,""]
["","","",null,null,null,null,null,null,null,null,null,null,null,null,null,null,null,null,null,null,null,null,null,null,null,null,null,null,null,null,null,null,null,null,null,null,null,null,null,null,null,{"$f":"IF(SUM(F46:AP46)=0,\"\",SUM(F46:AP46))","v":""}]
[null,null,null,null,null,{"$f":"SUM(F17:F46)","v":0},0,0,0,0,0,0,0,0,0,0,0,0,0,0,0,0,0,0,0,0,0,0,0,0,0,0,0,0,0,0,0,0,0,0,0,0,{"$f":"SUM(F47:AP47)","v":0}]
[]
[]
[]
[null,null,null,null,null,null,null,null,null,null,null,null,null,null,null,null,null,"Collaborator",null,null,null,null,null,null,null,null,null,null,null,null,null,null,"Supervisor"]
[]
[]
[null,null,null,null,null,null,null,null,null,null,null,null,null,null,null,null,null,"Date",null,null,null,null,null,null,null,null,null,null,null,null,null,null,"Date"]
[null,null,null,null,null,null,null,null,null,null,null,null,null,null,null,null,null,"______/______/______",null,null,null,null,null,null,null,null,null,null,null,null,null,null,"______/______/______"]

{"sheet":"June","index":5,"n_rows":55,"n_cols":43,"rows_kept":55,"cut":false,"hidden":false,"merged":[[11,7,11,12],[5,6,5,8],[6,3,6,42],[8,7,8,31],[9,7,9,31],[10,7,10,31],[50,17,50,26],[50,32,50,41],[53,17,53,26],[53,32,53,41],[54,17,54,26],[54,32,54,41]]}
[]
[null,null,null,null,null,null,null,null,"Nome do Ficheiro",null,null,null,{"$f":"CONCATENATE(CalendarYear,\".\",F6,\".\",VLOOKUP(H10,'BD1'!F2:J14,4,FALSE))","v":{"$error":"#N/A"}}]
[null,null,null,null,null,null,null,null,"Nome de Folha",null,null,null,{"$f":"CONCATENATE(E6,\".\",CalendarYear)","v":"June.2023"}]
[null,null,null,"Início da semana","SUN"]
[null,null,null,"Ano",2023]
[null,null,null,"Mês","June",{"$f":"VLOOKUP(E6,'BD1'!B2:C13,2,FALSE)","v":"06"},{"$f":"R16","v":"2023-06-09"}]
[null,null,null,"TIMESHEET"]
[]
[null,null,null,null,null,null,"DEPARTMENT/SERVICE: "]
[null,null,null,null,null,null,"NAME:"]
[null,null,null,null,null,null,"CATEGORY:"]
[null,null,null,null,null,null,"MONHT/YEAR:",{"$f":"CONCATENATE(E6,\"/\",CalendarYear)","v":"June/2023"}]
[]
[null,null,null,null,null,{"$f":"AND(MONTH(F16)=MONTH($G$6),COUNTIF(feriados,F16)>0)","v":false},false,false,false,false,false,false,false,false,false,false,true,false,true,false,false,true,false,false,false,false,false,false,false,false,false,false,false,false,false,false,false,false,false,false,false,false]
[null,null,null,null,null,"Sun","Mon","Tue","Wed","Thu","Fri","Sat","Sun","Mon","Tue","Wed","Thu","Fri","Sat","Sun","Mon","Tue","Wed","Thu","Fri","Sat","Sun","Mon","Tue","Wed","Thu","Fri","Sat","Sun","Mon","Tue","Wed","Thu","Fri","Sat","Sun","Mon","TOTAL "]
[null,null,null,"Project ","Tasks",{"$f":"DaysAndWeeks+DATE(CalendarYear,F6,1)-WEEKDAY(DATE(CalendarYear,F6,1),(WeekStart=\"Mon\")+1)+1","v":"2023-05-28"},"2023-05-29","2023-05-30","2023-05-31","2023-06-01","2023-06-02","2023-06-03",{"$f":"DaysAndWeeks+DATE(CalendarYear,F6,1)-WEEKDAY(DATE(CalendarYear,F6,1),(WeekStart=\"Mon\")+1)+8","v":"2023-06-04"},"2023-06-05","2023-06-06","2023-06-07","2023-06-08","2023-06-09","2023-06-10",{"$f":"DaysAndWeeks+DATE(CalendarYear,F6,1)-WEEKDAY(DATE(CalendarYear,F6,1),(WeekStart=\"Mon\")+1)+15","v":"2023-06-11"},"2023-06-12","2023-06-13","2023-06-14","2023-06-15","2023-06-16","2023-06-17",{"$f":"DaysAndWeeks+DATE(CalendarYear,F6,1)-WEEKDAY(DATE(CalendarYear,F6,1),(WeekStart=\"Mon\")+1)+22","v":"2023-06-18"},"2023-06-19","2023-06-20","2023-06-21","2023-06-22","2023-06-23","2023-06-24",{"$f":"DaysAndWeeks+DATE(CalendarYear,F6,1)-WEEKDAY(DATE(CalendarYear,F6,1),(WeekStart=\"Mon\")+1)+29","v":"2023-06-25"},"2023-06-26","2023-06-27","2023-06-28","2023-06-29","2023-06-30","2023-07-01",{"$f":"DaysAndWeeks+DATE(CalendarYear,F6,1)-WEEKDAY(DATE(CalendarYear,F6,1),(WeekStart=\"Mon\")+1)+36","v":"2023-07-02"},"2023-07-03","HOURS"]
[{"$f":"IF(OR($H$10=\"\",D17=\"\"),\"\",$H$10)","v":""},{"$f":"IF(OR(CalendarYear=\"\",D17=\"\"),\"\",CalendarYear)","v":""},{"$f":"IF(OR($E$6=\"\",D17=\"\"),\"\",$E$6)","v":""},null,null,null,null,null,null,null,null,null,null,null,null,null,null,null,null,null,null,null,null,null,null,null,null,null,null,null,null,null,null,null,null,null,null,null,null,null,null,null,{"$f":"IF(SUM(F17:AP17)=0,\"\",SUM(F17:AP17))","v":""}]
[{"$f":"IF(OR($H$10=\"\",D18=\"\"),\"\",$H$10)","v":""},"",{"$f":"IF(OR($E$6=\"\",D18=\"\"),\"\",$E$6)","v":""},null,null,null,null,null,null,null,null,null,null,null,null,null,null,null,null,null,null,null,null,null,null,null,null,null,null,null,null,null,null,null,null,null,null,null,null,null,null,null,{"$f":"IF(SUM(F18:AP18)=0,\"\",SUM(F18:AP18))","v":""}]
["","","",null,null,null,null,null,null,null,null,null,null,null,null,null,null,null,null,null,null,null,null,null,null,null,null,null,null,null,null,null,null,null,null,null,null,null,null,null,null,null,{"$f":"IF(SUM(F19:AP19)=0,\"\",SUM(F19:AP19))","v":""}]
["","","",null,null,null,null,null,null,null,null,null,null,null,null,null,null,null,null,null,null,null,null,null,null,null,null,null,null,null,null,null,null,null,null,null,null,null,null,null,null,null,""]
["","","",null,null,null,null,null,null,null,null,null,null,null,null,null,null,null,null,null,null,null,null,null,null,null,null,null,null,null,null,null,null,null,null,null,null,null,null,null,null,null,""]
["","","",null,null,null,null,null,null,null,null,null,null,null,null,null,null,null,null,null,null,null,null,null,null,null,null,null,null,null,null,null,null,null,null,null,null,null,null,null,null,null,""]
["","","",null,null,null,null,null,null,null,null,null,null,null,null,null,null,null,null,null,null,null,null,null,null,null,null,null,null,null,null,null,null,null,null,null,null,null,null,null,null,null,""]
["","","",null,null,null,null,null,null,null,null,null,null,null,null,null,null,null,null,null,null,null,null,null,null,null,null,null,null,null,null,null,null,null,null,null,null,null,null,null,null,null,""]
["","","",null,null,null,null,null,null,null,null,null,null,null,null,null,null,null,null,null,null,null,null,null,null,null,null,null,null,null,null,null,null,null,null,null,null,null,null,null,null,null,""]
["","","",null,null,null,null,null,null,null,null,null,null,null,null,null,null,null,null,null,null,null,null,null,null,null,null,null,null,null,null,null,null,null,null,null,null,null,null,null,null,null,""]
["","","",null,null,null,null,null,null,null,null,null,null,null,null,null,null,null,null,null,null,null,null,null,null,null,null,null,null,null,null,null,null,null,null,null,null,null,null,null,null,null,""]
["","","",null,null,null,null,null,null,null,null,null,null,null,null,null,null,null,null,null,null,null,null,null,null,null,null,null,null,null,null,null,null,null,null,null,null,null,null,null,null,null,""]
["","","",null,null,null,null,null,null,null,null,null,null,null,null,null,null,null,null,null,null,null,null,null,null,null,null,null,null,null,null,null,null,null,null,null,null,null,null,null,null,null,""]
["","","",null,null,null,null,null,null,null,null,null,null,null,null,null,null,null,null,null,null,null,null,null,null,null,null,null,null,null,null,null,null,null,null,null,null,null,null,null,null,null,""]
["","","",null,null,null,null,null,null,null,null,null,null,null,null,null,null,null,null,null,null,null,null,null,null,null,null,null,null,null,null,null,null,null,null,null,null,null,null,null,null,null,""]
["","","",null,null,null,null,null,null,null,null,null,null,null,null,null,null,null,null,null,null,null,null,null,null,null,null,null,null,null,null,null,null,null,null,null,null,null,null,null,null,null,""]
["","","",null,null,null,null,null,null,null,null,null,null,null,null,null,null,null,null,null,null,null,null,null,null,null,null,null,null,null,null,null,null,null,null,null,null,null,null,null,null,null,""]
["","","",null,null,null,null,null,null,null,null,null,null,null,null,null,null,null,null,null,null,null,null,null,null,null,null,null,null,null,null,null,null,null,null,null,null,null,null,null,null,null,""]
["","","",null,null,null,null,null,null,null,null,null,null,null,null,null,null,null,null,null,null,null,null,null,null,null,null,null,null,null,null,null,null,null,null,null,null,null,null,null,null,null,""]
["","","",null,null,null,null,null,null,null,null,null,null,null,null,null,null,null,null,null,null,null,null,null,null,null,null,null,null,null,null,null,null,null,null,null,null,null,null,null,null,null,""]
["","","",null,null,null,null,null,null,null,null,null,null,null,null,null,null,null,null,null,null,null,null,null,null,null,null,null,null,null,null,null,null,null,null,null,null,null,null,null,null,null,""]
["","","",null,null,null,null,null,null,null,null,null,null,null,null,null,null,null,null,null,null,null,null,null,null,null,null,null,null,null,null,null,null,null,null,null,null,null,null,null,null,null,""]
["","","",null,null,null,null,null,null,null,null,null,null,null,null,null,null,null,null,null,null,null,null,null,null,null,null,null,null,null,null,null,null,null,null,null,null,null,null,null,null,null,""]
["","","",null,null,null,null,null,null,null,null,null,null,null,null,null,null,null,null,null,null,null,null,null,null,null,null,null,null,null,null,null,null,null,null,null,null,null,null,null,null,null,""]
["","","",null,null,null,null,null,null,null,null,null,null,null,null,null,null,null,null,null,null,null,null,null,null,null,null,null,null,null,null,null,null,null,null,null,null,null,null,null,null,null,""]
["","","",null,null,null,null,null,null,null,null,null,null,null,null,null,null,null,null,null,null,null,null,null,null,null,null,null,null,null,null,null,null,null,null,null,null,null,null,null,null,null,""]
["","","",null,null,null,null,null,null,null,null,null,null,null,null,null,null,null,null,null,null,null,null,null,null,null,null,null,null,null,null,null,null,null,null,null,null,null,null,null,null,null,""]
["","","",null,null,null,null,null,null,null,null,null,null,null,null,null,null,null,null,null,null,null,null,null,null,null,null,null,null,null,null,null,null,null,null,null,null,null,null,null,null,null,""]
["","","",null,null,null,null,null,null,null,null,null,null,null,null,null,null,null,null,null,null,null,null,null,null,null,null,null,null,null,null,null,null,null,null,null,null,null,null,null,null,null,""]
["","","",null,null,null,null,null,null,null,null,null,null,null,null,null,null,null,null,null,null,null,null,null,null,null,null,null,null,null,null,null,null,null,null,null,null,null,null,null,null,null,{"$f":"IF(SUM(F46:AP46)=0,\"\",SUM(F46:AP46))","v":""}]
[null,null,null,null,null,{"$f":"SUM(F17:F46)","v":0},0,0,0,0,0,0,0,0,0,0,0,0,0,0,0,0,0,0,0,0,0,0,0,0,0,0,0,0,0,0,0,0,0,0,0,0,{"$f":"SUM(F47:AP47)","v":0}]
[]
[]
[]
[null,null,null,null,null,null,null,null,null,null,null,null,null,null,null,null,null,"Collaborator",null,null,null,null,null,null,null,null,null,null,null,null,null,null,"Supervisor"]
[]
[]
[null,null,null,null,null,null,null,null,null,null,null,null,null,null,null,null,null,"Date",null,null,null,null,null,null,null,null,null,null,null,null,null,null,"Date"]
[null,null,null,null,null,null,null,null,null,null,null,null,null,null,null,null,null,"______/______/______",null,null,null,null,null,null,null,null,null,null,null,null,null,null,"______/______/______"]

{"sheet":"July","index":6,"n_rows":55,"n_cols":43,"rows_kept":55,"cut":false,"hidden":false,"merged":[[11,7,11,12],[5,6,5,8],[6,3,6,42],[8,7,8,31],[9,7,9,31],[10,7,10,31],[50,17,50,26],[50,32,50,41],[53,17,53,26],[53,32,53,41],[54,17,54,26],[54,32,54,41]]}
[]
[null,null,null,null,null,null,null,null,"Nome do Ficheiro",null,null,null,{"$f":"CONCATENATE(CalendarYear,\".\",F6,\".\",VLOOKUP(H10,'BD1'!F2:J14,4,FALSE))","v":{"$error":"#N/A"}}]
[null,null,null,null,null,null,null,null,"Nome de Folha",null,null,null,{"$f":"CONCATENATE(E6,\".\",CalendarYear)","v":"July.2023"}]
[null,null,null,"Início da semana","SUN"]
[null,null,null,"Ano",2023]
[null,null,null,"Mês","July",{"$f":"VLOOKUP(E6,'BD1'!B2:C13,2,FALSE)","v":"07"},{"$f":"R16","v":"2023-07-07"}]
[null,null,null,"TIMESHEET"]
[]
[null,null,null,null,null,null,"DEPARTMENT/SERVICE: "]
[null,null,null,null,null,null,"NAME:"]
[null,null,null,null,null,null,"CATEGORY:"]
[null,null,null,null,null,null,"MONHT/YEAR:",{"$f":"CONCATENATE(E6,\"/\",CalendarYear)","v":"July/2023"}]
[]
[null,null,null,null,null,{"$f":"AND(MONTH(F16)=MONTH($G$6),COUNTIF(feriados,F16)>0)","v":false},false,false,false,false,false,false,false,false,false,false,false,false,false,false,false,false,false,false,false,false,false,false,false,false,false,false,false,false,false,false,false,false,false,false,false,false]
[null,null,null,null,null,"Sun","Mon","Tue","Wed","Thu","Fri","Sat","Sun","Mon","Tue","Wed","Thu","Fri","Sat","Sun","Mon","Tue","Wed","Thu","Fri","Sat","Sun","Mon","Tue","Wed","Thu","Fri","Sat","Sun","Mon","Tue","Wed","Thu","Fri","Sat","Sun","Mon","TOTAL "]
[null,null,null,"Project ","Tasks",{"$f":"DaysAndWeeks+DATE(CalendarYear,F6,1)-WEEKDAY(DATE(CalendarYear,F6,1),(WeekStart=\"Mon\")+1)+1","v":"2023-06-25"},"2023-06-26","2023-06-27","2023-06-28","2023-06-29","2023-06-30","2023-07-01",{"$f":"DaysAndWeeks+DATE(CalendarYear,F6,1)-WEEKDAY(DATE(CalendarYear,F6,1),(WeekStart=\"Mon\")+1)+8","v":"2023-07-02"},"2023-07-03","2023-07-04","2023-07-05","2023-07-06","2023-07-07","2023-07-08",{"$f":"DaysAndWeeks+DATE(CalendarYear,F6,1)-WEEKDAY(DATE(CalendarYear,F6,1),(WeekStart=\"Mon\")+1)+15","v":"2023-07-09"},"2023-07-10","2023-07-11","2023-07-12","2023-07-13","2023-07-14","2023-07-15",{"$f":"DaysAndWeeks+DATE(CalendarYear,F6,1)-WEEKDAY(DATE(CalendarYear,F6,1),(WeekStart=\"Mon\")+1)+22","v":"2023-07-16"},"2023-07-17","2023-07-18","2023-07-19","2023-07-20","2023-07-21","2023-07-22",{"$f":"DaysAndWeeks+DATE(CalendarYear,F6,1)-WEEKDAY(DATE(CalendarYear,F6,1),(WeekStart=\"Mon\")+1)+29","v":"2023-07-23"},"2023-07-24","2023-07-25","2023-07-26","2023-07-27","2023-07-28","2023-07-29",{"$f":"DaysAndWeeks+DATE(CalendarYear,F6,1)-WEEKDAY(DATE(CalendarYear,F6,1),(WeekStart=\"Mon\")+1)+36","v":"2023-07-30"},"2023-07-31","HOURS"]
[{"$f":"IF(OR($H$10=\"\",D17=\"\"),\"\",$H$10)","v":""},{"$f":"IF(OR(CalendarYear=\"\",D17=\"\"),\"\",CalendarYear)","v":""},{"$f":"IF(OR($E$6=\"\",D17=\"\"),\"\",$E$6)","v":""},null,null,null,null,null,null,null,null,null,null,null,null,null,null,null,null,null,null,null,null,null,null,null,null,null,null,null,null,null,null,null,null,null,null,null,null,null,null,null,{"$f":"IF(SUM(F17:AP17)=0,\"\",SUM(F17:AP17))","v":""}]
[{"$f":"IF(OR($H$10=\"\",D18=\"\"),\"\",$H$10)","v":""},"",{"$f":"IF(OR($E$6=\"\",D18=\"\"),\"\",$E$6)","v":""},null,null,null,null,null,null,null,null,null,null,null,null,null,null,null,null,null,null,null,null,null,null,null,null,null,null,null,null,null,null,null,null,null,null,null,null,null,null,null,{"$f":"IF(SUM(F18:AP18)=0,\"\",SUM(F18:AP18))","v":""}]
["","","",null,null,null,null,null,null,null,null,null,null,null,null,null,null,null,null,null,null,null,null,null,null,null,null,null,null,null,null,null,null,null,null,null,null,null,null,null,null,null,{"$f":"IF(SUM(F19:AP19)=0,\"\",SUM(F19:AP19))","v":""}]
["","","",null,null,null,null,null,null,null,null,null,null,null,null,null,null,null,null,null,null,null,null,null,null,null,null,null,null,null,null,null,null,null,null,null,null,null,null,null,null,null,""]
["","","",null,null,null,null,null,null,null,null,null,null,null,null,null,null,null,null,null,null,null,null,null,null,null,null,null,null,null,null,null,null,null,null,null,null,null,null,null,null,null,""]
["","","",null,null,null,null,null,null,null,null,null,null,null,null,null,null,null,null,null,null,null,null,null,null,null,null,null,null,null,null,null,null,null,null,null,null,null,null,null,null,null,""]
["","","",null,null,null,null,null,null,null,null,null,null,null,null,null,null,null,null,null,null,null,null,null,null,null,null,null,null,null,null,null,null,null,null,null,null,null,null,null,null,null,""]
["","","",null,null,null,null,null,null,null,null,null,null,null,null,null,null,null,null,null,null,null,null,null,null,null,null,null,null,null,null,null,null,null,null,null,null,null,null,null,null,null,""]
["","","",null,null,null,null,null,null,null,null,null,null,null,null,null,null,null,null,null,null,null,null,null,null,null,null,null,null,null,null,null,null,null,null,null,null,null,null,null,null,null,""]
["","","",null,null,null,null,null,null,null,null,null,null,null,null,null,null,null,null,null,null,null,null,null,null,null,null,null,null,null,null,null,null,null,null,null,null,null,null,null,null,null,""]
["","","",null,null,null,null,null,null,null,null,null,null,null,null,null,null,null,null,null,null,null,null,null,null,null,null,null,null,null,null,null,null,null,null,null,null,null,null,null,null,null,""]
["","","",null,null,null,null,null,null,null,null,null,null,null,null,null,null,null,null,null,null,null,null,null,null,null,null,null,null,null,null,null,null,null,null,null,null,null,null,null,null,null,""]
["","","",null,null,null,null,null,null,null,null,null,null,null,null,null,null,null,null,null,null,null,null,null,null,null,null,null,null,null,null,null,null,null,null,null,null,null,null,null,null,null,""]
["","","",null,null,null,null,null,null,null,null,null,null,null,null,null,null,null,null,null,null,null,null,null,null,null,null,null,null,null,null,null,null,null,null,null,null,null,null,null,null,null,""]
["","","",null,null,null,null,null,null,null,null,null,null,null,null,null,null,null,null,null,null,null,null,null,null,null,null,null,null,null,null,null,null,null,null,null,null,null,null,null,null,null,""]
["","","",null,null,null,null,null,null,null,null,null,null,null,null,null,null,null,null,null,null,null,null,null,null,null,null,null,null,null,null,null,null,null,null,null,null,null,null,null,null,null,""]
["","","",null,null,null,null,null,null,null,null,null,null,null,null,null,null,null,null,null,null,null,null,null,null,null,null,null,null,null,null,null,null,null,null,null,null,null,null,null,null,null,""]
["","","",null,null,null,null,null,null,null,null,null,null,null,null,null,null,null,null,null,null,null,null,null,null,null,null,null,null,null,null,null,null,null,null,null,null,null,null,null,null,null,""]
["","","",null,null,null,null,null,null,null,null,null,null,null,null,null,null,null,null,null,null,null,null,null,null,null,null,null,null,null,null,null,null,null,null,null,null,null,null,null,null,null,""]
["","","",null,null,null,null,null,null,null,null,null,null,null,null,null,null,null,null,null,null,null,null,null,null,null,null,null,null,null,null,null,null,null,null,null,null,null,null,null,null,null,""]
["","","",null,null,null,null,null,null,null,null,null,null,null,null,null,null,null,null,null,null,null,null,null,null,null,null,null,null,null,null,null,null,null,null,null,null,null,null,null,null,null,""]
["","","",null,null,null,null,null,null,null,null,null,null,null,null,null,null,null,null,null,null,null,null,null,null,null,null,null,null,null,null,null,null,null,null,null,null,null,null,null,null,null,""]
["","","",null,null,null,null,null,null,null,null,null,null,null,null,null,null,null,null,null,null,null,null,null,null,null,null,null,null,null,null,null,null,null,null,null,null,null,null,null,null,null,""]
["","","",null,null,null,null,null,null,null,null,null,null,null,null,null,null,null,null,null,null,null,null,null,null,null,null,null,null,null,null,null,null,null,null,null,null,null,null,null,null,null,""]
["","","",null,null,null,null,null,null,null,null,null,null,null,null,null,null,null,null,null,null,null,null,null,null,null,null,null,null,null,null,null,null,null,null,null,null,null,null,null,null,null,""]
["","","",null,null,null,null,null,null,null,null,null,null,null,null,null,null,null,null,null,null,null,null,null,null,null,null,null,null,null,null,null,null,null,null,null,null,null,null,null,null,null,""]
["","","",null,null,null,null,null,null,null,null,null,null,null,null,null,null,null,null,null,null,null,null,null,null,null,null,null,null,null,null,null,null,null,null,null,null,null,null,null,null,null,""]
["","","",null,null,null,null,null,null,null,null,null,null,null,null,null,null,null,null,null,null,null,null,null,null,null,null,null,null,null,null,null,null,null,null,null,null,null,null,null,null,null,""]
["","","",null,null,null,null,null,null,null,null,null,null,null,null,null,null,null,null,null,null,null,null,null,null,null,null,null,null,null,null,null,null,null,null,null,null,null,null,null,null,null,""]
["","","",null,null,null,null,null,null,null,null,null,null,null,null,null,null,null,null,null,null,null,null,null,null,null,null,null,null,null,null,null,null,null,null,null,null,null,null,null,null,null,{"$f":"IF(SUM(F46:AP46)=0,\"\",SUM(F46:AP46))","v":""}]
[null,null,null,null,null,{"$f":"SUM(F17:F46)","v":0},0,0,0,0,0,0,0,0,0,0,0,0,0,0,0,0,0,0,0,0,0,0,0,0,0,0,0,0,0,0,0,0,0,0,0,0,{"$f":"SUM(F47:AP47)","v":0}]
[]
[]
[]
[null,null,null,null,null,null,null,null,null,null,null,null,null,null,null,null,null,"Collaborator",null,null,null,null,null,null,null,null,null,null,null,null,null,null,"Supervisor"]
[]
[]
[null,null,null,null,null,null,null,null,null,null,null,null,null,null,null,null,null,"Date",null,null,null,null,null,null,null,null,null,null,null,null,null,null,"Date"]
[null,null,null,null,null,null,null,null,null,null,null,null,null,null,null,null,null,"______/______/______",null,null,null,null,null,null,null,null,null,null,null,null,null,null,"______/______/______"]

{"sheet":"August","index":7,"n_rows":55,"n_cols":43,"rows_kept":55,"cut":false,"hidden":false,"merged":[[11,7,11,12],[5,6,5,8],[6,3,6,42],[8,7,8,31],[9,7,9,31],[10,7,10,31],[50,17,50,26],[50,32,50,41],[53,17,53,26],[53,32,53,41],[54,17,54,26],[54,32,54,41]]}
[]
[null,null,null,null,null,null,null,null,"Nome do Ficheiro",null,null,null,{"$f":"CONCATENATE(CalendarYear,\".\",F6,\".\",VLOOKUP(H10,'BD1'!F2:J14,4,FALSE))","v":{"$error":"#N/A"}}]
[null,null,null,null,null,null,null,null,"Nome de Folha",null,null,null,{"$f":"CONCATENATE(E6,\".\",CalendarYear)","v":"August.2023"}]
[null,null,null,"Início da semana","SUN"]
[null,null,null,"Ano",2023]
[null,null,null,"Mês","August",{"$f":"VLOOKUP(E6,'BD1'!B2:C13,2,FALSE)","v":"08"},{"$f":"R16","v":"2023-08-11"}]
[null,null,null,"TIMESHEET"]
[]
[null,null,null,null,null,null,"DEPARTMENT/SERVICE: "]
[null,null,null,null,null,null,"NAME:"]
[null,null,null,null,null,null,"CATEGORY:"]
[null,null,null,null,null,null,"MONHT/YEAR:",{"$f":"CONCATENATE(E6,\"/\",CalendarYear)","v":"August/2023"}]
[]
[null,null,null,null,null,{"$f":"AND(MONTH(F16)=MONTH($G$6),COUNTIF(feriados,F16)>0)","v":false},false,false,false,false,false,false,false,false,false,false,false,false,false,false,false,true,false,false,false,false,false,false,false,false,false,false,false,false,false,false,false,false,false,false,false,false]
[null,null,null,null,null,"Sun","Mon","Tue","Wed","Thu","Fri","Sat","Sun","Mon","Tue","Wed","Thu","Fri","Sat","Sun","Mon","Tue","Wed","Thu","Fri","Sat","Sun","Mon","Tue","Wed","Thu","Fri","Sat","Sun","Mon","Tue","Wed","Thu","Fri","Sat","Sun","Mon","TOTAL "]
[null,null,null,"Project ","Tasks",{"$f":"DaysAndWeeks+DATE(CalendarYear,F6,1)-WEEKDAY(DATE(CalendarYear,F6,1),(WeekStart=\"Mon\")+1)+1","v":"2023-07-30"},"2023-07-31","2023-08-01","2023-08-02","2023-08-03","2023-08-04","2023-08-05",{"$f":"DaysAndWeeks+DATE(CalendarYear,F6,1)-WEEKDAY(DATE(CalendarYear,F6,1),(WeekStart=\"Mon\")+1)+8","v":"2023-08-06"},"2023-08-07","2023-08-08","2023-08-09","2023-08-10","2023-08-11","2023-08-12",{"$f":"DaysAndWeeks+DATE(CalendarYear,F6,1)-WEEKDAY(DATE(CalendarYear,F6,1),(WeekStart=\"Mon\")+1)+15","v":"2023-08-13"},"2023-08-14","2023-08-15","2023-08-16","2023-08-17","2023-08-18","2023-08-19",{"$f":"DaysAndWeeks+DATE(CalendarYear,F6,1)-WEEKDAY(DATE(CalendarYear,F6,1),(WeekStart=\"Mon\")+1)+22","v":"2023-08-20"},"2023-08-21","2023-08-22","2023-08-23","2023-08-24","2023-08-25","2023-08-26",{"$f":"DaysAndWeeks+DATE(CalendarYear,F6,1)-WEEKDAY(DATE(CalendarYear,F6,1),(WeekStart=\"Mon\")+1)+29","v":"2023-08-27"},"2023-08-28","2023-08-29","2023-08-30","2023-08-31","2023-09-01","2023-09-02",{"$f":"DaysAndWeeks+DATE(CalendarYear,F6,1)-WEEKDAY(DATE(CalendarYear,F6,1),(WeekStart=\"Mon\")+1)+36","v":"2023-09-03"},"2023-09-04","HOURS"]
[{"$f":"IF(OR($H$10=\"\",D17=\"\"),\"\",$H$10)","v":""},{"$f":"IF(OR(CalendarYear=\"\",D17=\"\"),\"\",CalendarYear)","v":""},{"$f":"IF(OR($E$6=\"\",D17=\"\"),\"\",$E$6)","v":""},null,null,null,null,null,null,null,null,null,null,null,null,null,null,null,null,null,null,null,null,null,null,null,null,null,null,null,null,null,null,null,null,null,null,null,null,null,null,null,{"$f":"IF(SUM(F17:AP17)=0,\"\",SUM(F17:AP17))","v":""}]
[{"$f":"IF(OR($H$10=\"\",D18=\"\"),\"\",$H$10)","v":""},"",{"$f":"IF(OR($E$6=\"\",D18=\"\"),\"\",$E$6)","v":""},null,null,null,null,null,null,null,null,null,null,null,null,null,null,null,null,null,null,null,null,null,null,null,null,null,null,null,null,null,null,null,null,null,null,null,null,null,null,null,{"$f":"IF(SUM(F18:AP18)=0,\"\",SUM(F18:AP18))","v":""}]
["","","",null,null,null,null,null,null,null,null,null,null,null,null,null,null,null,null,null,null,null,null,null,null,null,null,null,null,null,null,null,null,null,null,null,null,null,null,null,null,null,{"$f":"IF(SUM(F19:AP19)=0,\"\",SUM(F19:AP19))","v":""}]
["","","",null,null,null,null,null,null,null,null,null,null,null,null,null,null,null,null,null,null,null,null,null,null,null,null,null,null,null,null,null,null,null,null,null,null,null,null,null,null,null,""]
["","","",null,null,null,null,null,null,null,null,null,null,null,null,null,null,null,null,null,null,null,null,null,null,null,null,null,null,null,null,null,null,null,null,null,null,null,null,null,null,null,""]
["","","",null,null,null,null,null,null,null,null,null,null,null,null,null,null,null,null,null,null,null,null,null,null,null,null,null,null,null,null,null,null,null,null,null,null,null,null,null,null,null,""]
["","","",null,null,null,null,null,null,null,null,null,null,null,null,null,null,null,null,null,null,null,null,null,null,null,null,null,null,null,null,null,null,null,null,null,null,null,null,null,null,null,""]
["","","",null,null,null,null,null,null,null,null,null,null,null,null,null,null,null,null,null,null,null,null,null,null,null,null,null,null,null,null,null,null,null,null,null,null,null,null,null,null,null,""]
["","","",null,null,null,null,null,null,null,null,null,null,null,null,null,null,null,null,null,null,null,null,null,null,null,null,null,null,null,null,null,null,null,null,null,null,null,null,null,null,null,""]
["","","",null,null,null,null,null,null,null,null,null,null,null,null,null,null,null,null,null,null,null,null,null,null,null,null,null,null,null,null,null,null,null,null,null,null,null,null,null,null,null,""]
["","","",null,null,null,null,null,null,null,null,null,null,null,null,null,null,null,null,null,null,null,null,null,null,null,null,null,null,null,null,null,null,null,null,null,null,null,null,null,null,null,""]
["","","",null,null,null,null,null,null,null,null,null,null,null,null,null,null,null,null,null,null,null,null,null,null,null,null,null,null,null,null,null,null,null,null,null,null,null,null,null,null,null,""]
["","","",null,null,null,null,null,null,null,null,null,null,null,null,null,null,null,null,null,null,null,null,null,null,null,null,null,null,null,null,null,null,null,null,null,null,null,null,null,null,null,""]
["","","",null,null,null,null,null,null,null,null,null,null,null,null,null,null,null,null,null,null,null,null,null,null,null,null,null,null,null,null,null,null,null,null,null,null,null,null,null,null,null,""]
["","","",null,null,null,null,null,null,null,null,null,null,null,null,null,null,null,null,null,null,null,null,null,null,null,null,null,null,null,null,null,null,null,null,null,null,null,null,null,null,null,""]
["","","",null,null,null,null,null,null,null,null,null,null,null,null,null,null,null,null,null,null,null,null,null,null,null,null,null,null,null,null,null,null,null,null,null,null,null,null,null,null,null,""]
["","","",null,null,null,null,null,null,null,null,null,null,null,null,null,null,null,null,null,null,null,null,null,null,null,null,null,null,null,null,null,null,null,null,null,null,null,null,null,null,null,""]
["","","",null,null,null,null,null,null,null,null,null,null,null,null,null,null,null,null,null,null,null,null,null,null,null,null,null,null,null,null,null,null,null,null,null,null,null,null,null,null,null,""]
["","","",null,null,null,null,null,null,null,null,null,null,null,null,null,null,null,null,null,null,null,null,null,null,null,null,null,null,null,null,null,null,null,null,null,null,null,null,null,null,null,""]
["","","",null,null,null,null,null,null,null,null,null,null,null,null,null,null,null,null,null,null,null,null,null,null,null,null,null,null,null,null,null,null,null,null,null,null,null,null,null,null,null,""]
["","","",null,null,null,null,null,null,null,null,null,null,null,null,null,null,null,null,null,null,null,null,null,null,null,null,null,null,null,null,null,null,null,null,null,null,null,null,null,null,null,""]
["","","",null,null,null,null,null,null,null,null,null,null,null,null,null,null,null,null,null,null,null,null,null,null,null,null,null,null,null,null,null,null,null,null,null,null,null,null,null,null,null,""]
["","","",null,null,null,null,null,null,null,null,null,null,null,null,null,null,null,null,null,null,null,null,null,null,null,null,null,null,null,null,null,null,null,null,null,null,null,null,null,null,null,""]
["","","",null,null,null,null,null,null,null,null,null,null,null,null,null,null,null,null,null,null,null,null,null,null,null,null,null,null,null,null,null,null,null,null,null,null,null,null,null,null,null,""]
["","","",null,null,null,null,null,null,null,null,null,null,null,null,null,null,null,null,null,null,null,null,null,null,null,null,null,null,null,null,null,null,null,null,null,null,null,null,null,null,null,""]
["","","",null,null,null,null,null,null,null,null,null,null,null,null,null,null,null,null,null,null,null,null,null,null,null,null,null,null,null,null,null,null,null,null,null,null,null,null,null,null,null,""]
["","","",null,null,null,null,null,null,null,null,null,null,null,null,null,null,null,null,null,null,null,null,null,null,null,null,null,null,null,null,null,null,null,null,null,null,null,null,null,null,null,""]
["","","",null,null,null,null,null,null,null,null,null,null,null,null,null,null,null,null,null,null,null,null,null,null,null,null,null,null,null,null,null,null,null,null,null,null,null,null,null,null,null,""]
["","","",null,null,null,null,null,null,null,null,null,null,null,null,null,null,null,null,null,null,null,null,null,null,null,null,null,null,null,null,null,null,null,null,null,null,null,null,null,null,null,""]
["","","",null,null,null,null,null,null,null,null,null,null,null,null,null,null,null,null,null,null,null,null,null,null,null,null,null,null,null,null,null,null,null,null,null,null,null,null,null,null,null,{"$f":"IF(SUM(F46:AP46)=0,\"\",SUM(F46:AP46))","v":""}]
[null,null,null,null,null,{"$f":"SUM(F17:F46)","v":0},0,0,0,0,0,0,0,0,0,0,0,0,0,0,0,0,0,0,0,0,0,0,0,0,0,0,0,0,0,0,0,0,0,0,0,0,{"$f":"SUM(F47:AP47)","v":0}]
[]
[]
[]
[null,null,null,null,null,null,null,null,null,null,null,null,null,null,null,null,null,"Collaborator",null,null,null,null,null,null,null,null,null,null,null,null,null,null,"Supervisor"]
[]
[]
[null,null,null,null,null,null,null,null,null,null,null,null,null,null,null,null,null,"Date",null,null,null,null,null,null,null,null,null,null,null,null,null,null,"Date"]
[null,null,null,null,null,null,null,null,null,null,null,null,null,null,null,null,null,"______/______/______",null,null,null,null,null,null,null,null,null,null,null,null,null,null,"______/______/______"]

{"sheet":"September","index":8,"n_rows":55,"n_cols":43,"rows_kept":55,"cut":false,"hidden":false,"merged":[[11,7,11,12],[5,6,5,8],[6,3,6,42],[8,7,8,31],[9,7,9,31],[10,7,10,31],[50,17,50,26],[50,32,50,41],[53,17,53,26],[53,32,53,41],[54,17,54,26],[54,32,54,41]]}
[]
[null,null,null,null,null,null,null,null,"Nome do Ficheiro",null,null,null,{"$f":"CONCATENATE(CalendarYear,\".\",F6,\".\",VLOOKUP(H10,'BD1'!F2:J14,4,FALSE))","v":{"$error":"#N/A"}}]
[null,null,null,null,null,null,null,null,"Nome de Folha",null,null,null,{"$f":"CONCATENATE(E6,\".\",CalendarYear)","v":"September.2023"}]
[null,null,null,"Início da semana","SUN"]
[null,null,null,"Ano",2023]
[null,null,null,"Mês","September",{"$f":"VLOOKUP(E6,'BD1'!B2:C13,2,FALSE)","v":"09"},{"$f":"R16","v":"2023-09-08"}]
[null,null,null,"TIMESHEET"]
[]
[null,null,null,null,null,null,"DEPARTMENT/SERVICE: "]
[null,null,null,null,null,null,"NAME:"]
[null,null,null,null,null,null,"CATEGORY:"]
[null,null,null,null,null,null,"MONHT/YEAR:",{"$f":"CONCATENATE(E6,\"/\",CalendarYear)","v":"September/2023"}]
[]
[null,null,null,null,null,{"$f":"AND(MONTH(F16)=MONTH($G$6),COUNTIF(feriados,F16)>0)","v":false},false,false,false,false,false,false,false,false,false,false,false,false,false,false,false,false,false,false,false,false,false,false,false,false,false,false,false,false,false,false,false,false,false,false,false,false]
[null,null,null,null,null,"Sun","Mon","Tue","Wed","Thu","Fri","Sat","Sun","Mon","Tue","Wed","Thu","Fri","Sat","Sun","Mon","Tue","Wed","Thu","Fri","Sat","Sun","Mon","Tue","Wed","Thu","Fri","Sat","Sun","Mon","Tue","Wed","Thu","Fri","Sat","Sun","Mon","TOTAL "]
[null,null,null,"Project ","Tasks",{"$f":"DaysAndWeeks+DATE(CalendarYear,F6,1)-WEEKDAY(DATE(CalendarYear,F6,1),(WeekStart=\"Mon\")+1)+1","v":"2023-08-27"},"2023-08-28","2023-08-29","2023-08-30","2023-08-31","2023-09-01","2023-09-02",{"$f":"DaysAndWeeks+DATE(CalendarYear,F6,1)-WEEKDAY(DATE(CalendarYear,F6,1),(WeekStart=\"Mon\")+1)+8","v":"2023-09-03"},"2023-09-04","2023-09-05","2023-09-06","2023-09-07","2023-09-08","2023-09-09",{"$f":"DaysAndWeeks+DATE(CalendarYear,F6,1)-WEEKDAY(DATE(CalendarYear,F6,1),(WeekStart=\"Mon\")+1)+15","v":"2023-09-10"},"2023-09-11","2023-09-12","2023-09-13","2023-09-14","2023-09-15","2023-09-16",{"$f":"DaysAndWeeks+DATE(CalendarYear,F6,1)-WEEKDAY(DATE(CalendarYear,F6,1),(WeekStart=\"Mon\")+1)+22","v":"2023-09-17"},"2023-09-18","2023-09-19","2023-09-20","2023-09-21","2023-09-22","2023-09-23",{"$f":"DaysAndWeeks+DATE(CalendarYear,F6,1)-WEEKDAY(DATE(CalendarYear,F6,1),(WeekStart=\"Mon\")+1)+29","v":"2023-09-24"},"2023-09-25","2023-09-26","2023-09-27","2023-09-28","2023-09-29","2023-09-30",{"$f":"DaysAndWeeks+DATE(CalendarYear,F6,1)-WEEKDAY(DATE(CalendarYear,F6,1),(WeekStart=\"Mon\")+1)+36","v":"2023-10-01"},"2023-10-02","HOURS"]
[{"$f":"IF(OR($H$10=\"\",D17=\"\"),\"\",$H$10)","v":""},{"$f":"IF(OR(CalendarYear=\"\",D17=\"\"),\"\",CalendarYear)","v":""},{"$f":"IF(OR($E$6=\"\",D17=\"\"),\"\",$E$6)","v":""},null,null,null,null,null,null,null,null,null,null,null,null,null,null,null,null,null,null,null,null,null,null,null,null,null,null,null,null,null,null,null,null,null,null,null,null,null,null,null,{"$f":"IF(SUM(F17:AP17)=0,\"\",SUM(F17:AP17))","v":""}]
[{"$f":"IF(OR($H$10=\"\",D18=\"\"),\"\",$H$10)","v":""},"",{"$f":"IF(OR($E$6=\"\",D18=\"\"),\"\",$E$6)","v":""},null,null,null,null,null,null,null,null,null,null,null,null,null,null,null,null,null,null,null,null,null,null,null,null,null,null,null,null,null,null,null,null,null,null,null,null,null,null,null,{"$f":"IF(SUM(F18:AP18)=0,\"\",SUM(F18:AP18))","v":""}]
["","","",null,null,null,null,null,null,null,null,null,null,null,null,null,null,null,null,null,null,null,null,null,null,null,null,null,null,null,null,null,null,null,null,null,null,null,null,null,null,null,{"$f":"IF(SUM(F19:AP19)=0,\"\",SUM(F19:AP19))","v":""}]
["","","",null,null,null,null,null,null,null,null,null,null,null,null,null,null,null,null,null,null,null,null,null,null,null,null,null,null,null,null,null,null,null,null,null,null,null,null,null,null,null,""]
["","","",null,null,null,null,null,null,null,null,null,null,null,null,null,null,null,null,null,null,null,null,null,null,null,null,null,null,null,null,null,null,null,null,null,null,null,null,null,null,null,""]
["","","",null,null,null,null,null,null,null,null,null,null,null,null,null,null,null,null,null,null,null,null,null,null,null,null,null,null,null,null,null,null,null,null,null,null,null,null,null,null,null,""]
["","","",null,null,null,null,null,null,null,null,null,null,null,null,null,null,null,null,null,null,null,null,null,null,null,null,null,null,null,null,null,null,null,null,null,null,null,null,null,null,null,""]
["","","",null,null,null,null,null,null,null,null,null,null,null,null,null,null,null,null,null,null,null,null,null,null,null,null,null,null,null,null,null,null,null,null,null,null,null,null,null,null,null,""]
["","","",null,null,null,null,null,null,null,null,null,null,null,null,null,null,null,null,null,null,null,null,null,null,null,null,null,null,null,null,null,null,null,null,null,null,null,null,null,null,null,""]
["","","",null,null,null,null,null,null,null,null,null,null,null,null,null,null,null,null,null,null,null,null,null,null,null,null,null,null,null,null,null,null,null,null,null,null,null,null,null,null,null,""]
["","","",null,null,null,null,null,null,null,null,null,null,null,null,null,null,null,null,null,null,null,null,null,null,null,null,null,null,null,null,null,null,null,null,null,null,null,null,null,null,null,""]
["","","",null,null,null,null,null,null,null,null,null,null,null,null,null,null,null,null,null,null,null,null,null,null,null,null,null,null,null,null,null,null,null,null,null,null,null,null,null,null,null,""]
["","","",null,null,null,null,null,null,null,null,null,null,null,null,null,null,null,null,null,null,null,null,null,null,null,null,null,null,null,null,null,null,null,null,null,null,null,null,null,null,null,""]
["","","",null,null,null,null,null,null,null,null,null,null,null,null,null,null,null,null,null,null,null,null,null,null,null,null,null,null,null,null,null,null,null,null,null,null,null,null,null,null,null,""]
["","","",null,null,null,null,null,null,null,null,null,null,null,null,null,null,null,null,null,null,null,null,null,null,null,null,null,null,null,null,null,null,null,null,null,null,null,null,null,null,null,""]
["","","",null,null,null,null,null,null,null,null,null,null,null,null,null,null,null,null,null,null,null,null,null,null,null,null,null,null,null,null,null,null,null,null,null,null,null,null,null,null,null,""]
["","","",null,null,null,null,null,null,null,null,null,null,null,null,null,null,null,null,null,null,null,null,null,null,null,null,null,null,null,null,null,null,null,null,null,null,null,null,null,null,null,""]
["","","",null,null,null,null,null,null,null,null,null,null,null,null,null,null,null,null,null,null,null,null,null,null,null,null,null,null,null,null,null,null,null,null,null,null,null,null,null,null,null,""]
["","","",null,null,null,null,null,null,null,null,null,null,null,null,null,null,null,null,null,null,null,null,null,null,null,null,null,null,null,null,null,null,null,null,null,null,null,null,null,null,null,""]
["","","",null,null,null,null,null,null,null,null,null,null,null,null,null,null,null,null,null,null,null,null,null,null,null,null,null,null,null,null,null,null,null,null,null,null,null,null,null,null,null,""]
["","","",null,null,null,null,null,null,null,null,null,null,null,null,null,null,null,null,null,null,null,null,null,null,null,null,null,null,null,null,null,null,null,null,null,null,null,null,null,null,null,""]
["","","",null,null,null,null,null,null,null,null,null,null,null,null,null,null,null,null,null,null,null,null,null,null,null,null,null,null,null,null,null,null,null,null,null,null,null,null,null,null,null,""]
["","","",null,null,null,null,null,null,null,null,null,null,null,null,null,null,null,null,null,null,null,null,null,null,null,null,null,null,null,null,null,null,null,null,null,null,null,null,null,null,null,""]
["","","",null,null,null,null,null,null,null,null,null,null,null,null,null,null,null,null,null,null,null,null,null,null,null,null,null,null,null,null,null,null,null,null,null,null,null,null,null,null,null,""]
["","","",null,null,null,null,null,null,null,null,null,null,null,null,null,null,null,null,null,null,null,null,null,null,null,null,null,null,null,null,null,null,null,null,null,null,null,null,null,null,null,""]
["","","",null,null,null,null,null,null,null,null,null,null,null,null,null,null,null,null,null,null,null,null,null,null,null,null,null,null,null,null,null,null,null,null,null,null,null,null,null,null,null,""]
["","","",null,null,null,null,null,null,null,null,null,null,null,null,null,null,null,null,null,null,null,null,null,null,null,null,null,null,null,null,null,null,null,null,null,null,null,null,null,null,null,""]
["","","",null,null,null,null,null,null,null,null,null,null,null,null,null,null,null,null,null,null,null,null,null,null,null,null,null,null,null,null,null,null,null,null,null,null,null,null,null,null,null,""]
["","","",null,null,null,null,null,null,null,null,null,null,null,null,null,null,null,null,null,null,null,null,null,null,null,null,null,null,null,null,null,null,null,null,null,null,null,null,null,null,null,""]
["","","",null,null,null,null,null,null,null,null,null,null,null,null,null,null,null,null,null,null,null,null,null,null,null,null,null,null,null,null,null,null,null,null,null,null,null,null,null,null,null,{"$f":"IF(SUM(F46:AP46)=0,\"\",SUM(F46:AP46))","v":""}]
[null,null,null,null,null,{"$f":"SUM(F17:F46)","v":0},0,0,0,0,0,0,0,0,0,0,0,0,0,0,0,0,0,0,0,0,0,0,0,0,0,0,0,0,0,0,0,0,0,0,0,0,{"$f":"SUM(F47:AP47)","v":0}]
[]
[]
[]
[null,null,null,null,null,null,null,null,null,null,null,null,null,null,null,null,null,"Collaborator",null,null,null,null,null,null,null,null,null,null,null,null,null,null,"Supervisor"]
[]
[]
[null,null,null,null,null,null,null,null,null,null,null,null,null,null,null,null,null,"Date",null,null,null,null,null,null,null,null,null,null,null,null,null,null,"Date"]
[null,null,null,null,null,null,null,null,null,null,null,null,null,null,null,null,null,"______/______/______",null,null,null,null,null,null,null,null,null,null,null,null,null,null,"______/______/______"]

{"sheet":"October","index":9,"n_rows":55,"n_cols":43,"rows_kept":55,"cut":false,"hidden":false,"merged":[[11,7,11,12],[5,6,5,8],[6,3,6,42],[8,7,8,31],[9,7,9,31],[10,7,10,31],[50,17,50,26],[50,32,50,41],[53,17,53,26],[53,32,53,41],[54,17,54,26],[54,32,54,41]]}
[]
[null,null,null,null,null,null,null,null,"Nome do Ficheiro",null,null,null,{"$f":"CONCATENATE(CalendarYear,\".\",F6,\".\",VLOOKUP(H10,'BD1'!F2:J14,4,FALSE))","v":{"$error":"#N/A"}}]
[null,null,null,null,null,null,null,null,"Nome de Folha",null,null,null,{"$f":"CONCATENATE(E6,\".\",CalendarYear)","v":"October.2023"}]
[null,null,null,"Início da semana","SUN"]
[null,null,null,"Ano",2023]
[null,null,null,"Mês","October",{"$f":"VLOOKUP(E6,'BD1'!B2:C13,2,FALSE)","v":10},{"$f":"R16","v":"2023-10-13"}]
[null,null,null,"TIMESHEET"]
[]
[null,null,null,null,null,null,"DEPARTMENT/SERVICE: "]
[null,null,null,null,null,null,"NAME:"]
[null,null,null,null,null,null,"CATEGORY:"]
[null,null,null,null,null,null,"MONHT/YEAR:",{"$f":"CONCATENATE(E6,\"/\",CalendarYear)","v":"October/2023"}]
[]
[null,null,null,null,null,{"$f":"AND(MONTH(F16)=MONTH($G$6),COUNTIF(feriados,F16)>0)","v":false},false,false,false,true,false,false,false,false,false,false,false,false,false,false,false,false,false,false,false,false,false,false,false,false,false,false,false,false,false,false,false,false,false,false,false,false]
[null,null,null,null,null,"Sun","Mon","Tue","Wed","Thu","Fri","Sat","Sun","Mon","Tue","Wed","Thu","Fri","Sat","Sun","Mon","Tue","Wed","Thu","Fri","Sat","Sun","Mon","Tue","Wed","Thu","Fri","Sat","Sun","Mon","Tue","Wed","Thu","Fri","Sat","Sun","Mon","TOTAL "]
[null,null,null,"Project ","Tasks",{"$f":"DaysAndWeeks+DATE(CalendarYear,F6,1)-WEEKDAY(DATE(CalendarYear,F6,1),(WeekStart=\"Mon\")+1)+1","v":"2023-10-01"},"2023-10-02","2023-10-03","2023-10-04","2023-10-05","2023-10-06","2023-10-07",{"$f":"DaysAndWeeks+DATE(CalendarYear,F6,1)-WEEKDAY(DATE(CalendarYear,F6,1),(WeekStart=\"Mon\")+1)+8","v":"2023-10-08"},"2023-10-09","2023-10-10","2023-10-11","2023-10-12","2023-10-13","2023-10-14",{"$f":"DaysAndWeeks+DATE(CalendarYear,F6,1)-WEEKDAY(DATE(CalendarYear,F6,1),(WeekStart=\"Mon\")+1)+15","v":"2023-10-15"},"2023-10-16","2023-10-17","2023-10-18","2023-10-19","2023-10-20","2023-10-21",{"$f":"DaysAndWeeks+DATE(CalendarYear,F6,1)-WEEKDAY(DATE(CalendarYear,F6,1),(WeekStart=\"Mon\")+1)+22","v":"2023-10-22"},"2023-10-23","2023-10-24","2023-10-25","2023-10-26","2023-10-27","2023-10-28",{"$f":"DaysAndWeeks+DATE(CalendarYear,F6,1)-WEEKDAY(DATE(CalendarYear,F6,1),(WeekStart=\"Mon\")+1)+29","v":"2023-10-29"},"2023-10-30","2023-10-31","2023-11-01","2023-11-02","2023-11-03","2023-11-04",{"$f":"DaysAndWeeks+DATE(CalendarYear,F6,1)-WEEKDAY(DATE(CalendarYear,F6,1),(WeekStart=\"Mon\")+1)+36","v":"2023-11-05"},"2023-11-06","HOURS"]
[{"$f":"IF(OR($H$10=\"\",D17=\"\"),\"\",$H$10)","v":""},{"$f":"IF(OR(CalendarYear=\"\",D17=\"\"),\"\",CalendarYear)","v":""},{"$f":"IF(OR($E$6=\"\",D17=\"\"),\"\",$E$6)","v":""},null,null,null,null,null,null,null,null,null,null,null,null,null,null,null,null,null,null,null,null,null,null,null,null,null,null,null,null,null,null,null,null,null,null,null,null,null,null,null,{"$f":"IF(SUM(F17:AP17)=0,\"\",SUM(F17:AP17))","v":""}]
[{"$f":"IF(OR($H$10=\"\",D18=\"\"),\"\",$H$10)","v":""},"",{"$f":"IF(OR($E$6=\"\",D18=\"\"),\"\",$E$6)","v":""},null,null,null,null,null,null,null,null,null,null,null,null,null,null,null,null,null,null,null,null,null,null,null,null,null,null,null,null,null,null,null,null,null,null,null,null,null,null,null,{"$f":"IF(SUM(F18:AP18)=0,\"\",SUM(F18:AP18))","v":""}]
["","","",null,null,null,null,null,null,null,null,null,null,null,null,null,null,null,null,null,null,null,null,null,null,null,null,null,null,null,null,null,null,null,null,null,null,null,null,null,null,null,{"$f":"IF(SUM(F19:AP19)=0,\"\",SUM(F19:AP19))","v":""}]
["","","",null,null,null,null,null,null,null,null,null,null,null,null,null,null,null,null,null,null,null,null,null,null,null,null,null,null,null,null,null,null,null,null,null,null,null,null,null,null,null,""]
["","","",null,null,null,null,null,null,null,null,null,null,null,null,null,null,null,null,null,null,null,null,null,null,null,null,null,null,null,null,null,null,null,null,null,null,null,null,null,null,null,""]
["","","",null,null,null,null,null,null,null,null,null,null,null,null,null,null,null,null,null,null,null,null,null,null,null,null,null,null,null,null,null,null,null,null,null,null,null,null,null,null,null,""]
["","","",null,null,null,null,null,null,null,null,null,null,null,null,null,null,null,null,null,null,null,null,null,null,null,null,null,null,null,null,null,null,null,null,null,null,null,null,null,null,null,""]
["","","",null,null,null,null,null,null,null,null,null,null,null,null,null,null,null,null,null,null,null,null,null,null,null,null,null,null,null,null,null,null,null,null,null,null,null,null,null,null,null,""]
["","","",null,null,null,null,null,null,null,null,null,null,null,null,null,null,null,null,null,null,null,null,null,null,null,null,null,null,null,null,null,null,null,null,null,null,null,null,null,null,null,""]
["","","",null,null,null,null,null,null,null,null,null,null,null,null,null,null,null,null,null,null,null,null,null,null,null,null,null,null,null,null,null,null,null,null,null,null,null,null,null,null,null,""]
["","","",null,null,null,null,null,null,null,null,null,null,null,null,null,null,null,null,null,null,null,null,null,null,null,null,null,null,null,null,null,null,null,null,null,null,null,null,null,null,null,""]
["","","",null,null,null,null,null,null,null,null,null,null,null,null,null,null,null,null,null,null,null,null,null,null,null,null,null,null,null,null,null,null,null,null,null,null,null,null,null,null,null,""]
["","","",null,null,null,null,null,null,null,null,null,null,null,null,null,null,null,null,null,null,null,null,null,null,null,null,null,null,null,null,null,null,null,null,null,null,null,null,null,null,null,""]
["","","",null,null,null,null,null,null,null,null,null,null,null,null,null,null,null,null,null,null,null,null,null,null,null,null,null,null,null,null,null,null,null,null,null,null,null,null,null,null,null,""]
["","","",null,null,null,null,null,null,null,null,null,null,null,null,null,null,null,null,null,null,null,null,null,null,null,null,null,null,null,null,null,null,null,null,null,null,null,null,null,null,null,""]
["","","",null,null,null,null,null,null,null,null,null,null,null,null,null,null,null,null,null,null,null,null,null,null,null,null,null,null,null,null,null,null,null,null,null,null,null,null,null,null,null,""]
["","","",null,null,null,null,null,null,null,null,null,null,null,null,null,null,null,null,null,null,null,null,null,null,null,null,null,null,null,null,null,null,null,null,null,null,null,null,null,null,null,""]
["","","",null,null,null,null,null,null,null,null,null,null,null,null,null,null,null,null,null,null,null,null,null,null,null,null,null,null,null,null,null,null,null,null,null,null,null,null,null,null,null,""]
["","","",null,null,null,null,null,null,null,null,null,null,null,null,null,null,null,null,null,null,null,null,null,null,null,null,null,null,null,null,null,null,null,null,null,null,null,null,null,null,null,""]
["","","",null,null,null,null,null,null,null,null,null,null,null,null,null,null,null,null,null,null,null,null,null,null,null,null,null,null,null,null,null,null,null,null,null,null,null,null,null,null,null,""]
["","","",null,null,null,null,null,null,null,null,null,null,null,null,null,null,null,null,null,null,null,null,null,null,null,null,null,null,null,null,null,null,null,null,null,null,null,null,null,null,null,""]
["","","",null,null,null,null,null,null,null,null,null,null,null,null,null,null,null,null,null,null,null,null,null,null,null,null,null,null,null,null,null,null,null,null,null,null,null,null,null,null,null,""]
["","","",null,null,null,null,null,null,null,null,null,null,null,null,null,null,null,null,null,null,null,null,null,null,null,null,null,null,null,null,null,null,null,null,null,null,null,null,null,null,null,""]
["","","",null,null,null,null,null,null,null,null,null,null,null,null,null,null,null,null,null,null,null,null,null,null,null,null,null,null,null,null,null,null,null,null,null,null,null,null,null,null,null,""]
["","","",null,null,null,null,null,null,null,null,null,null,null,null,null,null,null,null,null,null,null,null,null,null,null,null,null,null,null,null,null,null,null,null,null,null,null,null,null,null,null,""]
["","","",null,null,null,null,null,null,null,null,null,null,null,null,null,null,null,null,null,null,null,null,null,null,null,null,null,null,null,null,null,null,null,null,null,null,null,null,null,null,null,""]
["","","",null,null,null,null,null,null,null,null,null,null,null,null,null,null,null,null,null,null,null,null,null,null,null,null,null,null,null,null,null,null,null,null,null,null,null,null,null,null,null,""]
["","","",null,null,null,null,null,null,null,null,null,null,null,null,null,null,null,null,null,null,null,null,null,null,null,null,null,null,null,null,null,null,null,null,null,null,null,null,null,null,null,""]
["","","",null,null,null,null,null,null,null,null,null,null,null,null,null,null,null,null,null,null,null,null,null,null,null,null,null,null,null,null,null,null,null,null,null,null,null,null,null,null,null,""]
["","","",null,null,null,null,null,null,null,null,null,null,null,null,null,null,null,null,null,null,null,null,null,null,null,null,null,null,null,null,null,null,null,null,null,null,null,null,null,null,null,{"$f":"IF(SUM(F46:AP46)=0,\"\",SUM(F46:AP46))","v":""}]
[null,null,null,null,null,{"$f":"SUM(F17:F46)","v":0},0,0,0,0,0,0,0,0,0,0,0,0,0,0,0,0,0,0,0,0,0,0,0,0,0,0,0,0,0,0,0,0,0,0,0,0,{"$f":"SUM(F47:AP47)","v":0}]
[]
[]
[]
[null,null,null,null,null,null,null,null,null,null,null,null,null,null,null,null,null,"Collaborator",null,null,null,null,null,null,null,null,null,null,null,null,null,null,"Supervisor"]
[]
[]
[null,null,null,null,null,null,null,null,null,null,null,null,null,null,null,null,null,"Date",null,null,null,null,null,null,null,null,null,null,null,null,null,null,"Date"]
[null,null,null,null,null,null,null,null,null,null,null,null,null,null,null,null,null,"______/______/______",null,null,null,null,null,null,null,null,null,null,null,null,null,null,"______/______/______"]

{"sheet":"November","index":10,"n_rows":55,"n_cols":43,"rows_kept":55,"cut":false,"hidden":false,"merged":[[11,7,11,12],[5,6,5,8],[6,3,6,42],[8,7,8,31],[9,7,9,31],[10,7,10,31],[50,17,50,26],[50,32,50,41],[53,17,53,26],[53,32,53,41],[54,17,54,26],[54,32,54,41]]}
[]
[null,null,null,null,null,null,null,null,"Nome do Ficheiro",null,null,null,{"$f":"CONCATENATE(CalendarYear,\".\",F6,\".\",VLOOKUP(H10,'BD1'!F2:J14,4,FALSE))","v":{"$error":"#N/A"}}]
[null,null,null,null,null,null,null,null,"Nome de Folha",null,null,null,{"$f":"CONCATENATE(E6,\".\",CalendarYear)","v":"November.2023"}]
[null,null,null,"Início da semana","SUN"]
[null,null,null,"Ano",2023]
[null,null,null,"Mês","November",{"$f":"VLOOKUP(E6,'BD1'!B2:C13,2,FALSE)","v":11},{"$f":"R16","v":"2023-11-10"}]
[null,null,null,"TIMESHEET"]
[]
[null,null,null,null,null,null,"DEPARTMENT/SERVICE: "]
[null,null,null,null,null,null,"NAME:"]
[null,null,null,null,null,null,"CATEGORY:"]
[null,null,null,null,null,null,"MONHT/YEAR:",{"$f":"CONCATENATE(E6,\"/\",CalendarYear)","v":"November/2023"}]
[]
[null,null,null,null,null,{"$f":"AND(MONTH(F16)=MONTH($G$6),COUNTIF(feriados,F16)>0)","v":false},false,false,true,false,false,false,false,false,false,false,false,false,false,false,false,false,false,false,false,false,false,false,false,false,false,false,false,false,false,false,false,false,false,false,false,false]
[null,null,null,null,null,"Sun","Mon","Tue","Wed","Thu","Fri","Sat","Sun","Mon","Tue","Wed","Thu","Fri","Sat","Sun","Mon","Tue","Wed","Thu","Fri","Sat","Sun","Mon","Tue","Wed","Thu","Fri","Sat","Sun","Mon","Tue","Wed","Thu","Fri","Sat","Sun","Mon","TOTAL "]
[null,null,null,"Project ","Tasks",{"$f":"DaysAndWeeks+DATE(CalendarYear,F6,1)-WEEKDAY(DATE(CalendarYear,F6,1),(WeekStart=\"Mon\")+1)+1","v":"2023-10-29"},"2023-10-30","2023-10-31","2023-11-01","2023-11-02","2023-11-03","2023-11-04",{"$f":"DaysAndWeeks+DATE(CalendarYear,F6,1)-WEEKDAY(DATE(CalendarYear,F6,1),(WeekStart=\"Mon\")+1)+8","v":"2023-11-05"},"2023-11-06","2023-11-07","2023-11-08","2023-11-09","2023-11-10","2023-11-11",{"$f":"DaysAndWeeks+DATE(CalendarYear,F6,1)-WEEKDAY(DATE(CalendarYear,F6,1),(WeekStart=\"Mon\")+1)+15","v":"2023-11-12"},"2023-11-13","2023-11-14","2023-11-15","2023-11-16","2023-11-17","2023-11-18",{"$f":"DaysAndWeeks+DATE(CalendarYear,F6,1)-WEEKDAY(DATE(CalendarYear,F6,1),(WeekStart=\"Mon\")+1)+22","v":"2023-11-19"},"2023-11-20","2023-11-21","2023-11-22","2023-11-23","2023-11-24","2023-11-25",{"$f":"DaysAndWeeks+DATE(CalendarYear,F6,1)-WEEKDAY(DATE(CalendarYear,F6,1),(WeekStart=\"Mon\")+1)+29","v":"2023-11-26"},"2023-11-27","2023-11-28","2023-11-29","2023-11-30","2023-12-01","2023-12-02",{"$f":"DaysAndWeeks+DATE(CalendarYear,F6,1)-WEEKDAY(DATE(CalendarYear,F6,1),(WeekStart=\"Mon\")+1)+36","v":"2023-12-03"},"2023-12-04","HOURS"]
[{"$f":"IF(OR($H$10=\"\",D17=\"\"),\"\",$H$10)","v":""},{"$f":"IF(OR(CalendarYear=\"\",D17=\"\"),\"\",CalendarYear)","v":""},{"$f":"IF(OR($E$6=\"\",D17=\"\"),\"\",$E$6)","v":""},null,null,null,null,null,null,null,null,null,null,null,null,null,null,null,null,null,null,null,null,null,null,null,null,null,null,null,null,null,null,null,null,null,null,null,null,null,null,null,{"$f":"IF(SUM(F17:AP17)=0,\"\",SUM(F17:AP17))","v":""}]
[{"$f":"IF(OR($H$10=\"\",D18=\"\"),\"\",$H$10)","v":""},"",{"$f":"IF(OR($E$6=\"\",D18=\"\"),\"\",$E$6)","v":""},null,null,null,null,null,null,null,null,null,null,null,null,null,null,null,null,null,null,null,null,null,null,null,null,null,null,null,null,null,null,null,null,null,null,null,null,null,null,null,{"$f":"IF(SUM(F18:AP18)=0,\"\",SUM(F18:AP18))","v":""}]
["","","",null,null,null,null,null,null,null,null,null,null,null,null,null,null,null,null,null,null,null,null,null,null,null,null,null,null,null,null,null,null,null,null,null,null,null,null,null,null,null,{"$f":"IF(SUM(F19:AP19)=0,\"\",SUM(F19:AP19))","v":""}]
["","","",null,null,null,null,null,null,null,null,null,null,null,null,null,null,null,null,null,null,null,null,null,null,null,null,null,null,null,null,null,null,null,null,null,null,null,null,null,null,null,""]
["","","",null,null,null,null,null,null,null,null,null,null,null,null,null,null,null,null,null,null,null,null,null,null,null,null,null,null,null,null,null,null,null,null,null,null,null,null,null,null,null,""]
["","","",null,null,null,null,null,null,null,null,null,null,null,null,null,null,null,null,null,null,null,null,null,null,null,null,null,null,null,null,null,null,null,null,null,null,null,null,null,null,null,""]
["","","",null,null,null,null,null,null,null,null,null,null,null,null,null,null,null,null,null,null,null,null,null,null,null,null,null,null,null,null,null,null,null,null,null,null,null,null,null,null,null,""]
["","","",null,null,null,null,null,null,null,null,null,null,null,null,null,null,null,null,null,null,null,null,null,null,null,null,null,null,null,null,null,null,null,null,null,null,null,null,null,null,null,""]
["","","",null,null,null,null,null,null,null,null,null,null,null,null,null,null,null,null,null,null,null,null,null,null,null,null,null,null,null,null,null,null,null,null,null,null,null,null,null,null,null,""]
["","","",null,null,null,null,null,null,null,null,null,null,null,null,null,null,null,null,null,null,null,null,null,null,null,null,null,null,null,null,null,null,null,null,null,null,null,null,null,null,null,""]
["","","",null,null,null,null,null,null,null,null,null,null,null,null,null,null,null,null,null,null,null,null,null,null,null,null,null,null,null,null,null,null,null,null,null,null,null,null,null,null,null,""]
["","","",null,null,null,null,null,null,null,null,null,null,null,null,null,null,null,null,null,null,null,null,null,null,null,null,null,null,null,null,null,null,null,null,null,null,null,null,null,null,null,""]
["","","",null,null,null,null,null,null,null,null,null,null,null,null,null,null,null,null,null,null,null,null,null,null,null,null,null,null,null,null,null,null,null,null,null,null,null,null,null,null,null,""]
["","","",null,null,null,null,null,null,null,null,null,null,null,null,null,null,null,null,null,null,null,null,null,null,null,null,null,null,null,null,null,null,null,null,null,null,null,null,null,null,null,""]
["","","",null,null,null,null,null,null,null,null,null,null,null,null,null,null,null,null,null,null,null,null,null,null,null,null,null,null,null,null,null,null,null,null,null,null,null,null,null,null,null,""]
["","","",null,null,null,null,null,null,null,null,null,null,null,null,null,null,null,null,null,null,null,null,null,null,null,null,null,null,null,null,null,null,null,null,null,null,null,null,null,null,null,""]
["","","",null,null,null,null,null,null,null,null,null,null,null,null,null,null,null,null,null,null,null,null,null,null,null,null,null,null,null,null,null,null,null,null,null,null,null,null,null,null,null,""]
["","","",null,null,null,null,null,null,null,null,null,null,null,null,null,null,null,null,null,null,null,null,null,null,null,null,null,null,null,null,null,null,null,null,null,null,null,null,null,null,null,""]
["","","",null,null,null,null,null,null,null,null,null,null,null,null,null,null,null,null,null,null,null,null,null,null,null,null,null,null,null,null,null,null,null,null,null,null,null,null,null,null,null,""]
["","","",null,null,null,null,null,null,null,null,null,null,null,null,null,null,null,null,null,null,null,null,null,null,null,null,null,null,null,null,null,null,null,null,null,null,null,null,null,null,null,""]
["","","",null,null,null,null,null,null,null,null,null,null,null,null,null,null,null,null,null,null,null,null,null,null,null,null,null,null,null,null,null,null,null,null,null,null,null,null,null,null,null,""]
["","","",null,null,null,null,null,null,null,null,null,null,null,null,null,null,null,null,null,null,null,null,null,null,null,null,null,null,null,null,null,null,null,null,null,null,null,null,null,null,null,""]
["","","",null,null,null,null,null,null,null,null,null,null,null,null,null,null,null,null,null,null,null,null,null,null,null,null,null,null,null,null,null,null,null,null,null,null,null,null,null,null,null,""]
["","","",null,null,null,null,null,null,null,null,null,null,null,null,null,null,null,null,null,null,null,null,null,null,null,null,null,null,null,null,null,null,null,null,null,null,null,null,null,null,null,""]
["","","",null,null,null,null,null,null,null,null,null,null,null,null,null,null,null,null,null,null,null,null,null,null,null,null,null,null,null,null,null,null,null,null,null,null,null,null,null,null,null,""]
["","","",null,null,null,null,null,null,null,null,null,null,null,null,null,null,null,null,null,null,null,null,null,null,null,null,null,null,null,null,null,null,null,null,null,null,null,null,null,null,null,""]
["","","",null,null,null,null,null,null,null,null,null,null,null,null,null,null,null,null,null,null,null,null,null,null,null,null,null,null,null,null,null,null,null,null,null,null,null,null,null,null,null,""]
["","","",null,null,null,null,null,null,null,null,null,null,null,null,null,null,null,null,null,null,null,null,null,null,null,null,null,null,null,null,null,null,null,null,null,null,null,null,null,null,null,""]
["","","",null,null,null,null,null,null,null,null,null,null,null,null,null,null,null,null,null,null,null,null,null,null,null,null,null,null,null,null,null,null,null,null,null,null,null,null,null,null,null,""]
["","","",null,null,null,null,null,null,null,null,null,null,null,null,null,null,null,null,null,null,null,null,null,null,null,null,null,null,null,null,null,null,null,null,null,null,null,null,null,null,null,{"$f":"IF(SUM(F46:AP46)=0,\"\",SUM(F46:AP46))","v":""}]
[null,null,null,null,null,{"$f":"SUM(F17:F46)","v":0},0,0,0,0,0,0,0,0,0,0,0,0,0,0,0,0,0,0,0,0,0,0,0,0,0,0,0,0,0,0,0,0,0,0,0,0,{"$f":"SUM(F47:AP47)","v":0}]
[]
[]
[]
[null,null,null,null,null,null,null,null,null,null,null,null,null,null,null,null,null,"Collaborator",null,null,null,null,null,null,null,null,null,null,null,null,null,null,"Supervisor"]
[]
[]
[null,null,null,null,null,null,null,null,null,null,null,null,null,null,null,null,null,"Date",null,null,null,null,null,null,null,null,null,null,null,null,null,null,"Date"]
[null,null,null,null,null,null,null,null,null,null,null,null,null,null,null,null,null,"______/______/______",null,null,null,null,null,null,null,null,null,null,null,null,null,null,"______/______/______"]

{"sheet":"December","index":11,"n_rows":55,"n_cols":43,"rows_kept":55,"cut":false,"hidden":false,"merged":[[11,7,11,12],[5,6,5,8],[6,3,6,42],[8,7,8,31],[9,7,9,31],[10,7,10,31],[50,17,50,26],[50,32,50,41],[53,17,53,26],[53,32,53,41],[54,17,54,26],[54,32,54,41]]}
[]
[null,null,null,null,null,null,null,null,"Nome do Ficheiro",null,null,null,{"$f":"CONCATENATE(CalendarYear,\".\",F6,\".\",VLOOKUP(H10,'BD1'!F2:J14,4,FALSE))","v":{"$error":"#N/A"}}]
[null,null,null,null,null,null,null,null,"Nome de Folha",null,null,null,{"$f":"CONCATENATE(E6,\".\",CalendarYear)","v":"December.2023"}]
[null,null,null,"Início da semana","SUN"]
[null,null,null,"Ano",2023]
[null,null,null,"Mês","December",{"$f":"VLOOKUP(E6,'BD1'!B2:C13,2,FALSE)","v":12},{"$f":"R16","v":"2023-12-08"}]
[null,null,null,"TIMESHEET"]
[]
[null,null,null,null,null,null,"DEPARTMENT/SERVICE: "]
[null,null,null,null,null,null,"NAME:"]
[null,null,null,null,null,null,"CATEGORY:"]
[null,null,null,null,null,null,"MONHT/YEAR:",{"$f":"CONCATENATE(E6,\"/\",CalendarYear)","v":"December/2023"}]
[]
[null,null,null,null,null,{"$f":"AND(MONTH(F16)=MONTH($G$6),COUNTIF(feriados,F16)>0)","v":false},false,false,false,false,true,false,false,false,false,false,false,true,false,false,false,false,false,false,false,false,false,false,false,false,false,false,false,false,true,false,false,false,false,false,false,false]
[null,null,null,null,null,"Sun","Mon","Tue","Wed","Thu","Fri","Sat","Sun","Mon","Tue","Wed","Thu","Fri","Sat","Sun","Mon","Tue","Wed","Thu","Fri","Sat","Sun","Mon","Tue","Wed","Thu","Fri","Sat","Sun","Mon","Tue","Wed","Thu","Fri","Sat","Sun","Mon","TOTAL "]
[null,null,null,"Project ","Tasks",{"$f":"DaysAndWeeks+DATE(CalendarYear,F6,1)-WEEKDAY(DATE(CalendarYear,F6,1),(WeekStart=\"Mon\")+1)+1","v":"2023-11-26"},"2023-11-27","2023-11-28","2023-11-29","2023-11-30","2023-12-01","2023-12-02",{"$f":"DaysAndWeeks+DATE(CalendarYear,F6,1)-WEEKDAY(DATE(CalendarYear,F6,1),(WeekStart=\"Mon\")+1)+8","v":"2023-12-03"},"2023-12-04","2023-12-05","2023-12-06","2023-12-07","2023-12-08","2023-12-09",{"$f":"DaysAndWeeks+DATE(CalendarYear,F6,1)-WEEKDAY(DATE(CalendarYear,F6,1),(WeekStart=\"Mon\")+1)+15","v":"2023-12-10"},"2023-12-11","2023-12-12","2023-12-13","2023-12-14","2023-12-15","2023-12-16",{"$f":"DaysAndWeeks+DATE(CalendarYear,F6,1)-WEEKDAY(DATE(CalendarYear,F6,1),(WeekStart=\"Mon\")+1)+22","v":"2023-12-17"},"2023-12-18","2023-12-19","2023-12-20","2023-12-21","2023-12-22","2023-12-23",{"$f":"DaysAndWeeks+DATE(CalendarYear,F6,1)-WEEKDAY(DATE(CalendarYear,F6,1),(WeekStart=\"Mon\")+1)+29","v":"2023-12-24"},"2023-12-25","2023-12-26","2023-12-27","2023-12-28","2023-12-29","2023-12-30",{"$f":"DaysAndWeeks+DATE(CalendarYear,F6,1)-WEEKDAY(DATE(CalendarYear,F6,1),(WeekStart=\"Mon\")+1)+36","v":"2023-12-31"},"2024-01-01","HOURS"]
[{"$f":"IF(OR($H$10=\"\",D17=\"\"),\"\",$H$10)","v":""},{"$f":"IF(OR(CalendarYear=\"\",D17=\"\"),\"\",CalendarYear)","v":""},{"$f":"IF(OR($E$6=\"\",D17=\"\"),\"\",$E$6)","v":""},null,null,null,null,null,null,null,null,null,null,null,null,null,null,null,null,null,null,null,null,null,null,null,null,null,null,null,null,null,null,null,null,null,null,null,null,null,null,null,{"$f":"IF(SUM(F17:AP17)=0,\"\",SUM(F17:AP17))","v":""}]
[{"$f":"IF(OR($H$10=\"\",D18=\"\"),\"\",$H$10)","v":""},"",{"$f":"IF(OR($E$6=\"\",D18=\"\"),\"\",$E$6)","v":""},null,null,null,null,null,null,null,null,null,null,null,null,null,null,null,null,null,null,null,null,null,null,null,null,null,null,null,null,null,null,null,null,null,null,null,null,null,null,null,{"$f":"IF(SUM(F18:AP18)=0,\"\",SUM(F18:AP18))","v":""}]
["","","",null,null,null,null,null,null,null,null,null,null,null,null,null,null,null,null,null,null,null,null,null,null,null,null,null,null,null,null,null,null,null,null,null,null,null,null,null,null,null,{"$f":"IF(SUM(F19:AP19)=0,\"\",SUM(F19:AP19))","v":""}]
["","","",null,null,null,null,null,null,null,null,null,null,null,null,null,null,null,null,null,null,null,null,null,null,null,null,null,null,null,null,null,null,null,null,null,null,null,null,null,null,null,""]
["","","",null,null,null,null,null,null,null,null,null,null,null,null,null,null,null,null,null,null,null,null,null,null,null,null,null,null,null,null,null,null,null,null,null,null,null,null,null,null,null,""]
["","","",null,null,null,null,null,null,null,null,null,null,null,null,null,null,null,null,null,null,null,null,null,null,null,null,null,null,null,null,null,null,null,null,null,null,null,null,null,null,null,""]
["","","",null,null,null,null,null,null,null,null,null,null,null,null,null,null,null,null,null,null,null,null,null,null,null,null,null,null,null,null,null,null,null,null,null,null,null,null,null,null,null,""]
["","","",null,null,null,null,null,null,null,null,null,null,null,null,null,null,null,null,null,null,null,null,null,null,null,null,null,null,null,null,null,null,null,null,null,null,null,null,null,null,null,""]
["","","",null,null,null,null,null,null,null,null,null,null,null,null,null,null,null,null,null,null,null,null,null,null,null,null,null,null,null,null,null,null,null,null,null,null,null,null,null,null,null,""]
["","","",null,null,null,null,null,null,null,null,null,null,null,null,null,null,null,null,null,null,null,null,null,null,null,null,null,null,null,null,null,null,null,null,null,null,null,null,null,null,null,""]
["","","",null,null,null,null,null,null,null,null,null,null,null,null,null,null,null,null,null,null,null,null,null,null,null,null,null,null,null,null,null,null,null,null,null,null,null,null,null,null,null,""]
["","","",null,null,null,null,null,null,null,null,null,null,null,null,null,null,null,null,null,null,null,null,null,null,null,null,null,null,null,null,null,null,null,null,null,null,null,null,null,null,null,""]
["","","",null,null,null,null,null,null,null,null,null,null,null,null,null,null,null,null,null,null,null,null,null,null,null,null,null,null,null,null,null,null,null,null,null,null,null,null,null,null,null,""]
["","","",null,null,null,null,null,null,null,null,null,null,null,null,null,null,null,null,null,null,null,null,null,null,null,null,null,null,null,null,null,null,null,null,null,null,null,null,null,null,null,""]
["","","",null,null,null,null,null,null,null,null,null,null,null,null,null,null,null,null,null,null,null,null,null,null,null,null,null,null,null,null,null,null,null,null,null,null,null,null,null,null,null,""]
["","","",null,null,null,null,null,null,null,null,null,null,null,null,null,null,null,null,null,null,null,null,null,null,null,null,null,null,null,null,null,null,null,null,null,null,null,null,null,null,null,""]
["","","",null,null,null,null,null,null,null,null,null,null,null,null,null,null,null,null,null,null,null,null,null,null,null,null,null,null,null,null,null,null,null,null,null,null,null,null,null,null,null,""]
["","","",null,null,null,null,null,null,null,null,null,null,null,null,null,null,null,null,null,null,null,null,null,null,null,null,null,null,null,null,null,null,null,null,null,null,null,null,null,null,null,""]
["","","",null,null,null,null,null,null,null,null,null,null,null,null,null,null,null,null,null,null,null,null,null,null,null,null,null,null,null,null,null,null,null,null,null,null,null,null,null,null,null,""]
["","","",null,null,null,null,null,null,null,null,null,null,null,null,null,null,null,null,null,null,null,null,null,null,null,null,null,null,null,null,null,null,null,null,null,null,null,null,null,null,null,""]
["","","",null,null,null,null,null,null,null,null,null,null,null,null,null,null,null,null,null,null,null,null,null,null,null,null,null,null,null,null,null,null,null,null,null,null,null,null,null,null,null,""]
["","","",null,null,null,null,null,null,null,null,null,null,null,null,null,null,null,null,null,null,null,null,null,null,null,null,null,null,null,null,null,null,null,null,null,null,null,null,null,null,null,""]
["","","",null,null,null,null,null,null,null,null,null,null,null,null,null,null,null,null,null,null,null,null,null,null,null,null,null,null,null,null,null,null,null,null,null,null,null,null,null,null,null,""]
["","","",null,null,null,null,null,null,null,null,null,null,null,null,null,null,null,null,null,null,null,null,null,null,null,null,null,null,null,null,null,null,null,null,null,null,null,null,null,null,null,""]
["","","",null,null,null,null,null,null,null,null,null,null,null,null,null,null,null,null,null,null,null,null,null,null,null,null,null,null,null,null,null,null,null,null,null,null,null,null,null,null,null,""]
["","","",null,null,null,null,null,null,null,null,null,null,null,null,null,null,null,null,null,null,null,null,null,null,null,null,null,null,null,null,null,null,null,null,null,null,null,null,null,null,null,""]
["","","",null,null,null,null,null,null,null,null,null,null,null,null,null,null,null,null,null,null,null,null,null,null,null,null,null,null,null,null,null,null,null,null,null,null,null,null,null,null,null,""]
["","","",null,null,null,null,null,null,null,null,null,null,null,null,null,null,null,null,null,null,null,null,null,null,null,null,null,null,null,null,null,null,null,null,null,null,null,null,null,null,null,""]
["","","",null,null,null,null,null,null,null,null,null,null,null,null,null,null,null,null,null,null,null,null,null,null,null,null,null,null,null,null,null,null,null,null,null,null,null,null,null,null,null,""]
["","","",null,null,null,null,null,null,null,null,null,null,null,null,null,null,null,null,null,null,null,null,null,null,null,null,null,null,null,null,null,null,null,null,null,null,null,null,null,null,null,{"$f":"IF(SUM(F46:AP46)=0,\"\",SUM(F46:AP46))","v":""}]
[null,null,null,null,null,{"$f":"SUM(F17:F46)","v":0},0,0,0,0,0,0,0,0,0,0,0,0,0,0,0,0,0,0,0,0,0,0,0,0,0,0,0,0,0,0,0,0,0,0,0,0,{"$f":"SUM(F47:AP47)","v":0}]
[]
[]
[]
[null,null,null,null,null,null,null,null,null,null,null,null,null,null,null,null,null,"Collaborator",null,null,null,null,null,null,null,null,null,null,null,null,null,null,"Supervisor"]
[]
[]
[null,null,null,null,null,null,null,null,null,null,null,null,null,null,null,null,null,"Date",null,null,null,null,null,null,null,null,null,null,null,null,null,null,"Date"]
[null,null,null,null,null,null,null,null,null,null,null,null,null,null,null,null,null,"______/______/______",null,null,null,null,null,null,null,null,null,null,null,null,null,null,"______/______/______"]

{"sheet":"BD1","index":12,"n_rows":62,"n_cols":6,"rows_kept":62,"cut":false,"hidden":false,"merged":[]}
[null,"Mês"]
[null,"January","01","janeiro"]
[null,"February","02","fevereiro"]
[null,"March","03","março"]
[null,"April","04","abril"]
[null,"May","05","maio"]
[null,"June","06","junho"]
[null,"July","07","julho"]
[null,"August","08","agosto"]
[null,"September","09","setembro"]
[null,"October",10,"outubro"]
[null,"November",11,"novembro"]
[null,"December",12,"dezembro"]
[]
[]
[null,"NAME","CATEGORY","DEPARTMENT/SERVICE: ","PROJECT","TASK"]
[]
[]
[]
[]
[]
[]
[]
[]
[]
[]
[]
[]
[]
[]
[]
[]
[]
[]
[]
[]
[]
[]
[]
[]
[]
[]
[]
[null,"DATA","DIA DA SEMANA","DESCRIÇÃO"]
[null,"Feriados Fixos"]
[null,{"$f":"DATE(CalendarYear,1,1)","v":"2023-01-01"},{"$f":"TEXT(B46,\"dddd\")","v":"Sunday"},"Ano Novo"]
[null,{"$f":"DATE(CalendarYear,4,25)","v":"2023-04-25"},"Tuesday","25 de Abril"]
[null,{"$f":"DATE(CalendarYear,5,1)","v":"2023-05-01"},"Monday","Dia do Trabalho"]
[null,{"$f":"DATE(CalendarYear,6,10)","v":"2023-06-10"},"Saturday","Dia de Portugal"]
[null,{"$f":"DATE(CalendarYear,6,13)","v":"2023-06-13"},"Tuesday","Dia de Santo António"]
[null,{"$f":"DATE(CalendarYear,8,15)","v":"2023-08-15"},"Tuesday","Assunção Nossa Srª."]
[null,{"$f":"DATE(CalendarYear,10,5)","v":"2023-10-05"},"Thursday","Implantação da República"]
[null,{"$f":"DATE(CalendarYear,11,1)","v":"2023-11-01"},"Wednesday","Dia de Todos os Santos"]
[null,{"$f":"DATE(CalendarYear,12,1)","v":"2023-12-01"},"Friday","Restauração da Independência"]
[null,{"$f":"DATE(CalendarYear,12,8)","v":"2023-12-08"},"Friday","Nossa Srª. Da Conceição"]
[null,{"$f":"DATE(CalendarYear,12,25)","v":"2023-12-25"},"Monday","Natal"]
[null,"Feriados Móveis"]
[null,{"$f":"Pascoa-47","v":"2023-02-21"},{"$f":"TEXT(B58,\"dddd\")","v":"Tuesday"},"Carnaval"]
[null,{"$f":"Pascoa-2","v":"2023-04-07"},{"$f":"TEXT(B59,\"dddd\")","v":"Friday"},"Sexta-Feira Santa"]
[null,{"$f":"Pascoa","v":"2023-04-09"},{"$f":"TEXT(B60,\"dddd\")","v":"Sunday"},"Páscoa"]
[null,{"$f":"Pascoa+60","v":"2023-06-08"},{"$f":"TEXT(B61,\"dddd\")","v":"Thursday"},"Corpo de Deus"]
[null,"Outros Feriados"]